Workbook

Sheet Language

Sheet Exhibit 1 Engl (hidden)
C1: Future Value, Present Value and Return of an Investment
A2: The result is indicated in yellow (or grey). Click inside the cell to see the formula used by Excel.
A4: Examples -----> | B4: A | C4: B | D4: C | E4: D | F4: E | G4: F
A5: Rate (per period of payment) | B5: 0.05 | C5: 0.05 | D5: 0.025 | E5: 0.01 | F5: 0.05 | G5: =RATE(G6,G7,G8,G10) -> 0.0500030337
A6: Nper (number of payments) | B6: 5 | C6: 5.5 | D6: 10 | E6: 60 | F6: 5 | G6: 5
A7: Pmt (payments received) | B7: 0 | C7: 0 | D7: 0 | E7: 0 | F7: 0 | G7: 0
A8: PV (present value) | B8: -100 | C8: -100 | D8: -100 | E8: -100 | F8: =PV(F5,F6,F7,F10) -> -100.0014446 | G8: -100
A9: Type | B9: 0 | C9: 0 | D9: 0 | E9: 0 | F9: 0 | G9: 0
A10: FV (Future Value) | B10: =FV(B5,B6,B7,B8) -> 127.6281563 | C10: =FV(C5,C6,C7,C8) -> 130.7799433 | D10: =FV(D5,D6,D7,D8) -> 128.0084544 | E10: =FV(E5,E6,E7,E8) -> 181.6696699 | F10: 127.63 | G10: 127.63
C12: Investment with Several and Equal Cash Flows. A bond
A14: Examples -----> | B14: G | C14: H | D14: I | G14: Nominal vs effective rate | H14: J
A15: Rate (per period of payment) | B15: 0.06 | C15: =RATE(C16,C17,C18,C20) -> 0.06 | D15: =RATE(D16,D17,D18,D20) -> 0.02993322118 | G15: Nominal annual rate | H15: 0.024
A16: Nper (number of payments) | B16: 3 | C16: 3 | D16: 6 | G16: Periods per year | H16: 12
A17: Pmt (payments received) | B17: 500 | C17: 500 | D17: 250 | G17: Effective rate (IRR) | H17: =EFFECT(H15,H16) -> 0.02426576795
A18: PV (present value) | B18: =PV(B15,B16,B17,B20) -> -9732.698805 | C18: =B18 -> -9732.698805 | D18: =C18 -> -9732.698805
A19: Type | B19: 0 | C19: 0 | D19: 0
A20: FV (Future Value) | B20: 10000 | C20: 10000 | D20: 10000
C22: Investments with Cash Flows of Different Sizes. PV, NPV and IRR
A24: Year | B24: 0 | C24: 1 | D24: 2 | E24: 3 | F24: 4 | G24: 5
A25: Cash Flows, CF | B25: -100 | C25: -10 | D25: 20 | E25: 40 | F25: 50 | G25: 60
A26: Required return, K | B26: 0.1
A27: Return IRR (expected) | B27: =IRR(B25:G25) -> 0.1236410764 | D27: Formula =IRR(B25:G25)
A28: Present Value, PV | B28: =NPV(B26,C25:G25) -> 108.8965607 | D28: Formula =NPV(B26;C25:G25)
A29: Net Present Value, NPV | B29: =B28+B25 -> 8.896560717 | D29: Formula=B28+B25
A30: Sum of CF 1 to 5 | B30: =SUM(C25:G25) -> 160 | D30: Average CF 1 to 5 | F30: =AVERAGE(C25:G25) -> 32
A31: Accumulated CF (o to 5) | B31: =SUM(B25:G25) -> 60
A32: Simple return | B32: =-B31/B25/G24 -> 0.12
A34: Year | B34: 0 | C34: 1 | D34: 2 | E34: 3 | F34: 4 | G34: 5 | H34: IRR
A35: CF Project 1 | B35: -100 | C35: -10 | D35: 20 | E35: 40 | F35: 50 | G35: 60 | H35: =IRR(B35:G35) -> 0.1236410764
A36: CF Project 2 | B36: -100 | C36: =-B27*B36 -> 12.36410764 | D36: =C36 -> 12.36410764 | E36: =D36 -> 12.36410764 | F36: 12.36410764 | G36: =F36-B36 -> 112.3641076 | H36: =IRR(B36:G36) -> 0.1236410764
A37: CF Project 3 | B37: -100 | C37: =PMT(B27,5,-100,0) -> 27.99163199 | D37: =C37 -> 27.99163199 | E37: =D37 -> 27.99163199 | F37: 27.99163199 | G37: 27.99163199 | H37: =IRR(B37:G37) -> 0.1236410764

Sheet Anexo 1 Esp
C1: Valor Futuro, Valor Actual y Rentabilidad de la Inversión
A2: En amarillo se indica el resultado. Clicar dentro de la celda para ver la fórmula uada por Excel.
A4: Ejemplos =====> | B4: A | C4: B | D4: C | E4: D | F4: E | G4: F
A5: Tasa (por periodo de pago) | B5: 0.05 | C5: 0.05 | D5: 0.025 | E5: 0.01 | F5: 0.05 | G5: =RATE(G6,G7,G8,G10) -> 0.0500030337 | H5: Rate
A6: Periodos (duración de la inversión) | B6: 5 | C6: 5.5 | D6: 10 | E6: 60 | F6: 5 | G6: 5 | H6: Nper
A7: Pago (pagos recibidos durante la inversión) | B7: 0 | C7: 0 | D7: 0 | E7: 0 | F7: 0 | G7: 0 | H7: Pmt
A8: VA, valor actual | B8: -100 | C8: -100 | D8: -100 | E8: -100 | F8: =PV(F5,F6,F7,F10) -> -100.0014446 | G8: -100 | H8: PV
A9: Tipo (dejar en blanco o 0) | B9: 0 | C9: 0 | D9: 0 | E9: 0 | F9: 0 | G9: 0 | H9: Type
A10: VF, valor futuro | B10: =FV(B5,B6,B7,B8) -> 127.6281563 | C10: =FV(C5,C6,C7,C8) -> 130.7799433 | D10: =FV(D5,D6,D7,D8) -> 128.0084544 | E10: =FV(E5,E6,E7,E8) -> 181.6696699 | F10: 127.63 | G10: 127.63 | H10: FV
C12: Inversión con varios CF, todos iguales. Bonos
A14: Ejemplos =====> | B14: G | C14: H | D14: I | G14: Tasa nominal vs TAE | H14: J
A15: Tasa (por periodo de pago) | B15: 0.06 | C15: =RATE(C16,C17,C18,C20) -> 0.06 | D15: =RATE(D16,D17,D18,D20) -> 0.02993322118 | G15: Tasa nominal anual | H15: 0.024
A16: Periodos (duración de la inversión) | B16: 3 | C16: 3 | D16: 6 | G16: Periodos por año | H16: 12
A17: Pago (pagos recibidos durante la inversión) | B17: 500 | C17: 500 | D17: 250 | G17: TAE o TIR | H17: =EFFECT(H15,H16) -> 0.02426576795
A18: VA, valor actual | B18: =PV(B15,B16,B17,B20) -> -9732.698805 | C18: =B18 -> -9732.698805 | D18: =C18 -> -9732.698805
A19: Tipo (dejar en blanco o 0) | B19: 0 | C19: 0 | D19: 0
A20: VF, valor futuro | B20: 10000 | C20: 10000 | D20: 10000
C22: Inversión con varios CF, de diferente tamaño. VA, VAN y TIR
A24: Año | B24: 0 | C24: 1 | D24: 2 | E24: 3 | F24: 4 | G24: 5
A25: Cash Flows, CF | B25: -100 | C25: -10 | D25: 20 | E25: 40 | F25: 50 | G25: 60
A26: Rentabilidad requerida, K | B26: 0.1
A27: Rentabilidad esperada TIR | B27: =IRR(B25:G25) -> 0.1236410764 | D27: Fórmula =IRR(B25:G25)
A28: Valor actual, VA o PV | B28: =NPV(B26,C25:G25) -> 108.8965607 | D28: Fórmula =NPV(B26;C25:G25)
A29: Valor actual neto VAN o NPV | B29: =B28+B25 -> 8.896560717 | D29: Fórmula=B28+B25
A30: Suma de CF 1 a 5 | B30: =SUM(C25:G25) -> 160 | D30: CF promedio anual | G30: =B30/G24 -> 32
A31: CF acumaulado (0 a 5) | B31: =SUM(B25:G25) -> 60 | D31: Beneficio promedio anual | G31: =B31/G24 -> 12
A32: Rentabilidad simple | B32: =-B31/B25/G24 -> 0.12
A34: Año | B34: 0 | C34: 1 | D34: 2 | E34: 3 | F34: 4 | G34: 5 | H34: IRR
A35: CF Proyecto 1 | B35: -100 | C35: -10 | D35: 20 | E35: 40 | F35: 50 | G35: 60 | H35: =IRR(B35:G35) -> 0.1236410764
A36: CF Proyecto 2 | B36: -100 | C36: =-B27*B36 -> 12.36410764 | D36: =C36 -> 12.36410764 | E36: =D36 -> 12.36410764 | F36: 12.36410764 | G36: =F36-B36 -> 112.3641076 | H36: =IRR(B36:G36) -> 0.1236410764
A37: CF Proyecto 3 | B37: -100 | C37: =PMT(B27,5,-100,0) -> 27.99163199 | D37: =C37 -> 27.99163199 | E37: 27.99163199 | F37: 27.99163199 | G37: 27.99163199 | H37: =IRR(B37:G37) -> 0.1236410764
A41: OTRAS FOMRULAS QUE TE PUEDEN SER UTILES
A42: COMO CALCULAR LA CUOTA MENSUAL DE UNA HIPOTECA (o de cualquier préstamo).
A43: Lo mejor es que lo hagas con cualquier app del movil. Es sencillo, rápido y siempre lo llevas encima, no así el Excel.
A44: Pero just in case, aquí te pongo las fórmulas a usar con Excel. En verde, las hpótesis a usar.
B46: Tipo de interés anual | C46: 0.015
B47: Tipo de interés mensual | C47: =C46/12 -> 0.00125
B48: Número de años | C48: 20
B49: Número de meses | C49: =C48*12 -> 240
B50: Principal del préstamo | C50: 200000
B51: Gastos (comisiones, notario etc) | C51: 3000
B52: Total del plréstamo | C52: =C50+C51 -> 203000
B53: Cuota mensual a pagar | C53: =PMT(C47,C49,C52) -> -979.56718

Sheet Anexo 1 Port (hidden)
C1: Valor Futuro, Valor Actual y Rentabilidad de la Inversión
A2: En amarillo se indica el resultado. Clicar dentro de la celda para ver la fórmula uada por Excel.
A4: Ejemplos =====> | B4: A | C4: B | D4: C | E4: D | F4: E | G4: F
A5: Tasa (por periodo de pago) | B5: 0.05 | C5: 0.05 | D5: 0.025 | E5: 0.01 | F5: 0.05 | G5: =RATE(G6,G7,G8,G10) -> 0.0500030337 | H5: Rate
A6: Periodos (duración de la inversión) | B6: 5 | C6: 5.5 | D6: 10 | E6: 60 | F6: 5 | G6: 5 | H6: Nper
A7: Pago (pagos recibidos durante la inversión) | B7: 0 | C7: 0 | D7: 0 | E7: 0 | F7: 0 | G7: 0 | H7: Pmt
A8: VA, valor actual | B8: -100 | C8: -100 | D8: -100 | E8: -100 | F8: =PV(F5,F6,F7,F10) -> -100.0014446 | G8: -100 | H8: PV
A9: Tipo (dejar en blanco o 0) | B9: 0 | C9: 0 | D9: 0 | E9: 0 | F9: 0 | G9: 0 | H9: Type
A10: VF, valor futuro | B10: =FV(B5,B6,B7,B8) -> 127.6281563 | C10: =FV(C5,C6,C7,C8) -> 130.7799433 | D10: =FV(D5,D6,D7,D8) -> 128.0084544 | E10: =FV(E5,E6,E7,E8) -> 181.6696699 | F10: 127.63 | G10: 127.63 | H10: FV
C12: Inversión con varios CF, todos iguales. Bonos
A14: Ejemplos =====> | B14: G | C14: H | D14: I | G14: Tasa nominal vs TAE | H14: J
A15: Tasa (por periodo de pago) | B15: 0.06 | C15: =RATE(C16,C17,C18,C20) -> 0.06 | D15: =RATE(D16,D17,D18,D20) -> 0.02993322118 | G15: Tasa nominal anual | H15: 0.024
A16: Periodos (duración de la inversión) | B16: 3 | C16: 3 | D16: 6 | G16: Periodos por año | H16: 12
A17: Pago (pagos recibidos durante la inversión) | B17: 500 | C17: 500 | D17: 250 | G17: TAE o TIR | H17: =EFFECT(H15,H16) -> 0.02426576795
A18: VA, valor actual | B18: =PV(B15,B16,B17,B20) -> -9732.698805 | C18: =B18 -> -9732.698805 | D18: =C18 -> -9732.698805
A19: Tipo (dejar en blanco o 0) | B19: 0 | C19: 0 | D19: 0
A20: VF, valor futuro | B20: 10000 | C20: 10000 | D20: 10000
C22: Inversión con varios CF, de diferente tamaño. VA, VAN y TIR
A24: Año | B24: 0 | C24: 1 | D24: 2 | E24: 3 | F24: 4 | G24: 5
A25: Cash Flows, CF | B25: -100 | C25: -10 | D25: 20 | E25: 40 | F25: 50 | G25: 60
A26: Rentabilidad requerida, K | B26: 0.1
A27: Rentabilidad esperada TIR | B27: =IRR(B25:G25) -> 0.1236410764 | D27: Fórmula =IRR(B25:G25)
A28: Valor actual, VA o PV | B28: =NPV(B26,C25:G25) -> 108.8965607 | D28: Fórmula =NPV(B26;C25:G25)
A29: Valor actual neto VAN o NPV | B29: =B28+B25 -> 8.896560717 | D29: Fórmula=B28+B25
A30: Suma de CF 1 a 5 | B30: =SUM(C25:G25) -> 160 | D30: CF promedio anual | G30: =B30/G24 -> 32
A31: CF acumaulado (0 a 5) | B31: =SUM(B25:G25) -> 60 | D31: Beneficio promedio anual | G31: =B31/G24 -> 12
A32: Rentabilidad simple | B32: =-B31/B25/G24 -> 0.12
A34: Año | B34: 0 | C34: 1 | D34: 2 | E34: 3 | F34: 4 | G34: 5 | H34: IRR
A35: CF Proyecto 1 | B35: -100 | C35: -10 | D35: 20 | E35: 40 | F35: 50 | G35: 60 | H35: =IRR(B35:G35) -> 0.1236410764
A36: CF Proyecto 2 | B36: -100 | C36: =-B27*B36 -> 12.36410764 | D36: =C36 -> 12.36410764 | E36: =D36 -> 12.36410764 | F36: 12.36410764 | G36: =F36-B36 -> 112.3641076 | H36: =IRR(B36:G36) -> 0.1236410764
A37: CF Proyecto 3 | B37: -100 | C37: =PMT(B27,5,-100,0) -> 27.99163199 | D37: =C37 -> 27.99163199 | E37: 27.99163199 | F37: 27.99163199 | G37: 27.99163199 | H37: =IRR(B37:G37) -> 0.1236410764
A41: OTRAS FOMRULAS QUE TE PUEDEN SER UTILES
A42: COMO CALCULAR LA CUOTA MENSUAL DE UNA HIPOTECA (o de cualquier préstamo).
A43: Lo mejor es que lo hagas con cualquier app del movil. Es sencillo, rápido y siempre lo llevas encima, no así el Excel.
A44: Pero just in case, aquí te pongo las fórmulas a usar con Excel. En verde, las hpótesis a usar.
B46: Tipo de interés anual | C46: 0.015
B47: Tipo de interés mensual | C47: =C46/12 -> 0.00125
B48: Número de años | C48: 20
B49: Número de meses | C49: =C48*12 -> 240
B50: Principal del préstamo | C50: 200000
B51: Gastos (comisiones, notario etc) | C51: 3000
B52: Total del plréstamo | C52: =C50+C51 -> 203000
B53: Cuota mensual a pagar | C53: =PMT(C47,C49,C52) -> -979.56718

Sheet Questions (hidden)
B1: Self-assessment questions (Concepts)
B2: They are the same ones you have in Chapter 5. For these questions you do not need to do any calculations, but you do need to be clear about the concepts.
B3: Answer True or False in column "I". Find the correct answers in column K. Correct answer = +1. Wrong = -1. Blank = 0. | J3: -1
B4: Questions about PV, VF, IRR and K | I4: Your | J4: Your | K4: Correct
B5: Bond A. Maturity 3 years. € 5 coupon per year. Upon maturity you receive € 100. Price paid € 100. | I5: Answer | J5: Grade | K5: Answer
A6: 1 | B6: Bond A. Your expected return is 5%. T or F? | J6: =IF(I6=K6,1,IF(I6="",0,$J$3)) -> 0 | K6: V
A7: 2 | B7: Now you buy it for € 95, your expected return will be less than 5%. T or F? | J7: =IF(I7=K7,1,IF(I7="",0,$J$3)) -> 0 | K7: F
A8: 3 | B8: Same bond A, but it pays € 2.5 coupon each semester. The IRR will be the same, that is, 5%. T or F? | J8: 0 | K8: F
A9: 4 | B9: Same as in question 3. The simple annual return or APR will be 5%. T or F? | J9: 0 | K9: V
A10: 5 | B10: Same bond A. You want to obtain a return higher than 5%, therefore you should pay more than € 100. T or F? | J10: 0 | K10: F
A11: 6 | B11: Bond A. Market interest rates have dropped and Bond A is trading at 4%; as a consequence, the market price of the bond will be greater than € 100 T or F? | J11: 0 | K11: V
A12: 7 | B12: If the interest rates (or required return K of the bond) fall, it rises in price. T or F? | J12: 0 | K12: V
A13: 8 | B13: Zero coupon bond (does not pay coupons). At maturity they pay you € 100. To get a 5% return you should pay more than its par value (€ 100). T or F? | J13: 0 | K13: F
A14: 9 | B14: When interest rates rise, the price of bonds and almost all assets falls. T or F? | J14: 0 | K14: V
B15: Questions about NPV, PV and IRR.
A16: 10 | B16: If a project has a positive NPV, its IRR is greater than the required return K. T or F? | J16: 0 | K16: V
A17: =A16+1 -> 11 | B17: The NPV tells us the profitability that a project promises, but expressed in euros and not in percentage. T or F? | J17: 0 | K17: F
A18: =A17+1 -> 12 | B18: The NPV indicates the value that a project can add to the value of the company. T or F? | J18: 0 | K18: V
A19: 13 | B19: The NPV of a project tells me the euros that project generates for the company. T or F? | J19: 0 | K19: F
A20: 14 | B20: The initial amount to invest in an investment project is indicated by the NPV of that project. T or F? | J20: 0 | K20: F
A21: 15 | B21: The IRR is the return on the initial amount invested in year 0. T or F? | J21: 0 | K21: V
A22: 16 | B22: In buying a company, the PV indicates to me what I should pay for it. T or F? | J22: 0 | K22: V
A23: 17 | B23: The PV depends exclusively on the cash flows that the project promises. T or F? | J23: 0 | K23: F
A24: 18 | B24: To decide whether invest or not in a project, I may use the NPV.T or F? | J24: 0 | K24: V
A25: 19 | B25: NPV is the same as PV present value. T or F? | J25: 0 | K25: F
B26: Questions about the Perpetuity
A27: 20 | B27: Formula of perpetuity. The K indicates the return that you demand from the investment. T or F? | J27: 0 | K27: V
A28: =A27+1 -> 21 | B28: As CF of perpetuity you should use the one that is sustainable for many future years. T or F? | J28: 0 | K28: V
A29: 22 | B29: I can use perpetuity to calculate the expected return on an investment that lasts 5 years. T or F? | J29: 0 | K29: F
A30: 23 | B30: In formula of a perpetuity, a hypothesis of (K-g) = (3% - 2.5%) is perfectly reasonable. T or F? | J30: 0 | K30: F
A31: 24 | B31: To use the perpetuity formula it is necessary that the future CF are almost equal. T or F? | J31: 0 | K31: V
A32: 25 | B32: In a startup Company, it makes sense to use a perpetuity to calculate the value of the company. T or F? | J32: 0 | K32: F
H34: Points Earned | J34: =SUM(J6:J32) -> 0
H35: If you are under 15, you should review
B37: FINANCIAL CALCULATION WITH EXCEL. CAP 5 QUESTIONS AND ANSWERS.
B38: To respond (Col. I) copy & paste the number that appears in results (G43:G47) in yellow.
B39: Correct answer 1; error 0. Correct solution and comments on Col. K
B40: Formulas are already entered in cells G43:G47. View comments in each cell.
B42: DATA for questions 1 to 16 | D42: Data | E42: Unit | F42: RESULTS
B43: Required return (K) | D43: 0.03 | F43: PV = | G43: =PV(D43,D44,D45,D47) -> -266711.3063
B44: Maturity | D44: 10 | E44: year or semester | F44: FV = | G44: =FV(D43,D44,D45,D46) -> 154144.4828
B45: Payment PMT | D45: 10000 | E45: € | F45: Rate = | G45: =RATE(D44,D45,D46,D47) -> 0.0661414758
B46: Present Value PV | D46: -200000 | F46: APR = | G46: =G45*D48 -> 0.0661414758
B47: Future Value FV | D47: 243798.9 | E47: € | F47: Effect = | G47: =EFFECT(G46,D48) -> 0.0661414758
B48: Payment periods per year | D48: 1
I49: Your Answer | J49: Grade | K49: Correct Answer
B50: CAP 5 SELF-ASSESSMENT QUESTIONS (Calculations)
A51: 1 | B51: 18 month corporate promissory note. Nominal value, which we will get at maturity, 10,000 euros. It doesn't pay coupons. How much do you have to pay for the promissory note to get a 4% return? | J51: =IF(I51=K51,1,0) -> 0 | K51: -9428.660343
A52: =A51+1 -> 2 | B52: How much should you pay if you want the return to be 5%? | J52: 0 | K52: -9294.286409
A53: =A52+1 -> 3 | B53: How much should you pay if you want the return to be 4% and the promissory note has a 12-month maturity? | J53: 0 | K53: -9615.384615
A54: 4 | B54: Treasury bill, maturity 12 months. It doesn't pay coupons. Face value 100,000 euros. You pay 97,327 euros. What profitability do you get at maturity? | J54: 0 | K54: 0.02746411582
A55: 5 | B55: With the same data, what profitability do you get if the maturity is 18 months? | J55: 0 | K55: 0.01822660881
A56: 6 | B56: You invest 10,000 euros in a three-year term deposit at 4%. Interest is paid in the end. How many euros will you receive? | J56: 0 | K56: 11248.64
A57: 7 | B57: With the same data, how many euros will you receive if the period is five years? | J57: 0 | K57: 12166.52902
A58: 8 | B58: Government bond with a maturity of ten years. Nominal value 1,000 euros. Annual coupon of 4% or 40 euros per year. How much do you have to pay to get a 4% return? | J58: 0 | K58: -1000
A59: 9 | B59: Same data. How much do you have to pay to get a 5% return? | J59: 0 | K59: -922.7826507
A60: 10 | B60: Same data as in question 8. How much do you have to pay to get a 3% return? | J60: 0 | K60: -1085.302028
A61: 11 | B61: Same bond 8. You buy it at 950 euros. What annual return will you have earned at maturity? | J61: 0 | K61: 0.04636130543
A62: 12 | B62: Same bond 8. You pay 900 euros. What annual return will you have earned at maturity? | J62: 0 | K62: 0.05314925812
A63: 13 | B63: Same bond. But now, the coupon is paid on a six-monthly basis (20 euros per semester). If you pay 1,000 euros, what six-monthly profit profit will you have earned at maturity? | J63: 0 | K63: 0.02
A64: 14 | B64: Same data as in question 13. What is the simple annual return you have earned? | J64: 0 | K64: 0.04
A65: 15 | B65: Same data as in question 13. What is the effective annual return or IRR you have earned? | J65: 0 | K65: 0.0404
A66: 16 | B66: You bought a flat for 200,000 euros. You expect to get a rent of 10,000 euros each year. You also expect the floor to be revalued by an average of 2% per year over the next ten years. What profitability will you have achieved if after ten years your forecasts are met and you sell the apartment? | J66: 0 | K66: 0.0661414758
B68: Calculation with Perpetuity | D68: K = | E68: g = | F68: CF = | G68: PV =
D69: 0.1 | E69: 0.03 | F69: 1 | G69: =F69/(D69-E69) -> 14.28571429
A70: 17 | B70: The ABC stock promises a dividend of 1 euro per year. You don't expect the share price to rise or fall in the future. You want to get your stock investment a K return of 10%. What price should you pay for the stock? | J70: =IF(I70=K70,1,0) -> 0 | K70: 10
A71: =A70+1 -> 18 | B71: Same data. You expect the 1 euro dividend to grow by 3% each year. What price should you pay for the stock? | J71: =IF(I71=K71,1,0) -> 0 | K71: 14.28571429
A72: 19 | B72: You bought a flat for 200,000 euros. You expect to get a rent of 10,000 euros in the first year, with an annual increase of 2%. What profitability do you get? | J72: =IF(I72=K72,1,0) -> 0 | K72: 0.07
A73: 20 | B73: You bought a flat for 200,000 euros. You expect to get a rent of 10,000 euros the first year. What growth rate g is desired in order to accomplish your expected return to reach 8%? | J73: =IF(I73=K73,1,0) -> 0 | K73: 0.03
H75: Total Correct Answers | J75: =SUM(J51:J73) -> 0
H76: Highest score possible | J76: 20
B77: LAST QUESTION
A78: 21 | B78: Calculate the IRR, PV and NPV of investments A, B, C and D, whose expected cash flows and required rate of return K are shown in the table below.
B80: Project | C80: A | D80: B | E80: C | F80: D
B81: Required Return K | C81: 0.1 | D81: 0.1 | E81: 0.1 | F81: 0.1
B82: 0 | C82: -100 | D82: -100 | E82: -40 | F82: -100
B83: 1 | C83: 10 | D83: -20 | E83: -20 | F83: -20
B84: 2 | C84: 10 | D84: 0 | E84: -10 | F84: 0
B85: 3 | C85: 10 | D85: 10 | E85: 0 | F85: 10
B86: 4 | C86: 10 | D86: 20 | E86: 10 | F86: 20
B87: 5 | C87: 10 | D87: 30 | E87: 15 | F87: 30
B88: 6 | C88: 10 | D88: 30 | E88: 20 | F88: 40
B89: 7 | C89: 10 | D89: 30 | E89: 20 | F89: 40
B90: 8 | C90: 10 | D90: 20 | E90: 20 | F90: 40
B91: 9 | C91: 10 | D91: 20 | E91: 15 | F91: 50
B92: 10 | C92: 110 | D92: 100 | E92: 20 | F92: 50
B94: Sum of cash flows | C94: =SUM(C76:C86) -> -59.9 | D94: =SUM(D76:D86) -> -89.9 | E94: =SUM(E76:E86) -> -59.9 | F94: =SUM(F76:F86) -> -89.9
B95: IRR =
B96: PV =
B97: NPV =
B99: CORRECT ANSWERS
B100: Sum of cash flows | C100: =SUM(C82:C92) -> 100 | D100: =SUM(D82:D92) -> 140 | E100: =SUM(E82:E92) -> 50 | F100: =SUM(F82:F92) -> 160
B101: IRR = | C101: =IRR(C82:C92,0.1) -> 0.1 | D101: =IRR(D82:D92,0.1) -> 0.1133369249 | E101: =IRR(E82:E92,0.1) -> 0.08570045041 | F101: =IRR(F82:F92,0.1) -> 0.1305996236
B102: PV = | C102: =NPV(C81,C83:C92) -> 100 | D102: =NPV(D81,D83:D92) -> 110.314629 | E102: =NPV(E81,E83:E92) -> 34.65279204 | F102: =NPV(F81,F83:F92) -> 123.8668612
B103: NPV = | C103: =C102+C82 -> 0 | D103: =D102+D82 -> 10.31462899 | E103: =E102+E82 -> -5.347207958 | F103: =F102+F82 -> 23.86686116

Sheet Preguntas
B1: CAP. 5 PREGUNTAS DE AUTOEVALUACION (Conceptos)
B2: Son las mismas que tienes en el Cap 5. Para estas preguntas no necesitas hacer ningún cálculo, pero sí tener claros los conceptos.
B3: Responder V o F en columna "I". Respuesta correcta en columna K. Repuesta correcta = +1. Incorrecta = -1. En blanco = 0. | J3: -1
B4: Preguntas sobre VA, VF, TIR y K | I4: Tu Res- | J4: Califi- | K4: Respuesta
B5: Bono A. Vencimiento 3 años. Cupón de 5€ año. Al vencimiento recibes 100€. Precio 100€. | I5: puesta | J5: cación | K5: Correcta
A6: 1 | B6: Bono A. Tu rentabilidad esperada es de 5%. V o F? | J6: =IF(I6=K6,1,IF(I6="",0,$J$3)) -> 0 | K6: V
A7: 2 | B7: Ahora lo compras por 95€, tu rentabilidad esperada será menor que 5%. V o F? | J7: =IF(I7=K7,1,IF(I7="",0,$J$3)) -> 0 | K7: F
A8: 3 | B8: Mismo bono A, pero paga 2,5€ de cupón cada semestre. La TAE del bono o TIR será la misma, es decir 5%. V o F? | J8: 0 | K8: F
A9: 4 | B9: Igual que pregunta 3. La rentabilidad simple anual será del 5%. V o F? | J9: 0 | K9: V
A10: 5 | B10: Mismo bono A. Quieres obtener una rentabilidad superior al 5%, por tanto deberías pagar más de 100€. V o F? | J10: 0 | K10: F
A11: 6 | B11: Bono A. Han bajado los tipos de interés en el mercado y el bono A cotiza al 4%. Su precio de mercado seguro que es mayor que 100€ V o F? | J11: 0 | K11: V
A12: 7 | B12: Si bajan los tipos de interés o rentabilidad exigida K del bono, este sube de precio. V o F? | J12: 0 | K12: V
A13: 8 | B13: Bono cupón cero (no paga cupones). A vencimiento te pagan 100€. Para obtener una rentabilidad del 5% deberías pagar más que su valor par (100€). V o F? | J13: 0 | K13: F
A14: 9 | B14: Cuando suben los tipos de interés baja el precio de los bonos y de casi todos los activos. V o F? | J14: 0 | K14: V
B15: Preguntas sobre VAN, VA y TIR
A16: 10 | B16: Si un proyecto tiene un VAN positivo, su TIR es mayor que la rentabilidad exigida K. V o F? | J16: 0 | K16: V
A17: =A16+1 -> 11 | B17: El VAN nos dice la rentabilidad que un proyecto promete, pero expresada en euros y no en porcentaje. V o F? | J17: 0 | K17: F
A18: =A17+1 -> 12 | B18: El VAN me indica el valor que un proyecto puede añadir al valor de la compañía. V o F? | J18: 0 | K18: V
A19: 13 | B19: El VAN de un proyecto me dice los euros que ese proyecto genera para la empresa. V o F? | J19: 0 | K19: F
A20: 14 | B20: La cantidad inicial a invertir en un proyecto de inversión me la indica el VAN de ese proyecto. V o F? | J20: 0 | K20: F
A21: 15 | B21: La TIR es la rentabilidad de la cantidad inicial invertida en el año 0. V o F? | J21: 0 | K21: V
A22: 16 | B22: En la compra de una empresa el VA para mi indica lo que debería pagar por ella. V o F? | J22: 0 | K22: V
A23: 17 | B23: El VA depende exclusivamente de los cash flows que promete ese proyecto. V o F? | J23: 0 | K23: F
A24: 18 | B24: VAN y NPV son el mismo concepto. V o F? | J24: 0 | K24: V
A25: 19 | B25: NPV es lo mismo que valor actual VA. V o F? | J25: 0 | K25: F
B26: Preguntas sobre la Perpetuidad
A27: 20 | B27: Fórmula de la perpetuidad. La K indica la rentabilidad que le exiges a la inversión. V o F? | J27: 0 | K27: V
A28: =A27+1 -> 21 | B28: Como CF de la perpetuidad debes usar el que sea sostenible durante muchos años futuros. V o F? | J28: 0 | K28: V
A29: 22 | B29: Puedo usar la perpetuidad para calcular la rentabilidad espera en una inversión que dura 5 años. V o F? | J29: 0 | K29: F
A30: 23 | B30: En la perpetuidad, una hipótesis de (K-g) = (3%- 2,5%) es perfectamente razonable. V o F? | J30: 0 | K30: F
A31: 24 | B31: Para usar la fórmula de la perpetuidad es necesario que los CF futuros sean casi iguales. V o F? | J31: 0 | K31: V
A32: 25 | B32: En una startup es lógico usar la perpetuidad para calcular el valor de la empresa. V o F? | J32: 0 | K32: F
H34: Puntos obtenidos | J34: =SUM(J6:J32) -> 0
H35: Si tienes menso de 15, deberías repasar
B37: CALCULO FINANCIERO CON EXCEL. Practicar CALCULOS
B38: Para responder (Col. I) haz copy & paste del número que aparece en resultados (G43:G47) en amarillo.
B39: Respuesta correcta = 1; error = 0. Solución correcta y comentarios en Col. K
B40: Las fórmulas ya están introducidas en las celdas 43:G47. Ver los comentarios en cada celda.
B42: DATOS para preguntas 1 a 16 | D42: Datos | E42: Unidad | F42: RESULTADOS
B43: Rentabilidad exigida (K) | C43: Required return (K) | D43: 0.04 | F43: VA= | G43: =PV(D43,D44,D45,D47) -> -9428.660343 | H43: PV
B44: Vencimiento | C44: Maturity | D44: 1.5 | E44: años o semestres | F44: VF= | G44: =FV(D43,D44,D45,D46) -> 0 | H44: FV
B45: Pago o cupón | C45: Payment PMT | D45: 0 | E45: euros | F45: Tasa= | G45: =RATE(D44,D45,D46,D47) ->  | H45: Rate
B46: Valor actual (VA) | C46: Present value PV | F46: Int simple | G46: =G45*D48 ->  | H46: APR
B47: Valor futuro (VF) | C47: Future value FV | D47: 10000 | E47: euros | F47: TAE = | G47: =EFFECT(G46,D48) ->  | H47: Effect
B48: Periodos de pago por año | D48: 1
I49: Tu Res- | J49: Califi- | K49: Respuesta
B50: PREGUNTAS AUTOEVALUACION CAP 5. Cálculos | I50: puesta | J50: cación | K50: Correcta
A51: 1 | B51: Pagaré de empresa a 18 meses. Valor nominal, que obtendremos al vencimiento, 10.000 euros. No paga cupones. ¿Cuánto debes pagar por el pagaré para obtener una rentabilidad del 4 %? | J51: =IF(I51=K51,1,0) -> 0 | K51: -9428.660343
A52: =A51+1 -> 2 | B52: ¿Cuánto debes pagar si quieres que la rentabilidad sea del 5 %? | J52: 0 | K52: -9294.286409
A53: =A52+1 -> 3 | B53: ¿Cuánto debes pagar si quieres que la rentabilidad sea del 4 % y el pagaré tiene un vencimiento de 12 meses? | J53: 0 | K53: -9615.384615
A54: 4 | B54: Letra del Tesoro, vencimiento 12 meses. No paga cupones. Valor facial 100.000 euros. Pagas 97.327 euros. ¿Qué rentabilidad obtienes al vencimiento? | J54: 0 | K54: 0.02746411582
A55: 5 | B55: Con los mismos datos, ¿qué rentabilidad obtienes si el vencimiento es a 18 meses? | J55: 0 | K55: 0.01822660881
A56: 6 | B56: Inviertes 10.000 euros en un depósito a plazo a tres años y al 4 %. Los intereses se pagan al final. ¿Cuántos euros recibirás? | J56: 0 | K56: 11248.64
A57: 7 | B57: Con los mismos datos, ¿cuántos euros recibirás si el plazo es cinco años? | J57: 0 | K57: 12166.52902
A58: 8 | B58: Bono del Estado con vencimiento diez años. Valor nominal 1.000 euros. Cupón anual del 4 % ó 40 euros al año. ¿Cuánto debes pagar para obtener una rentabilidad del 4 %? | J58: 0 | K58: -1000
A59: 9 | B59: Mismos datos. ¿Cuánto debes pagar para obtener una rentabilidad del 5%? | J59: 0 | K59: -922.7826507
A60: 10 | B60: Mismos datos que en la pregunta 8. ¿Cuánto debes pagar para obtener una rentabilidad del 3 %? | J60: 0 | K60: -1085.302028
A61: 11 | B61: Mismo bono 8. Compras a 950 euros. ¿Qué rentabilidad anual habrás obtenido al vencimiento? | J61: 0 | K61: 0.04636130543
A62: 12 | B62: Mismo bono 8. Pagas 900 euros. ¿Qué rentabilidad anual habrás obtenido al vencimiento? | J62: 0 | K62: 0.05314925812
A63: 13 | B63: Mismo bono. Pero ahora, el cupón se paga semestralmente (20 euros por semestre). Si pagas 1.000 euros, ¿qué rentabilidad semestral habrás obtenido al vencimiento? | J63: 0 | K63: 0.02
A64: 14 | B64: Mismos datos que en la pregunta 13. ¿Cuál es la rentabilidad anual simple que has obtenido? | J64: 0 | K64: 0.04
A65: 15 | B65: Mismos datos que en la pregunta 13. ¿Cuál es la rentabilidad anual efectiva o TIR que has obtenido? | J65: 0 | K65: 0.0404
A66: 16 | B66: Has comprado un piso por 200.000 euros. Esperas obtener un alquiler de 10.000 euros cada año. También esperas que en promedio el piso se revalorice un 2 % anual durante los próximos diez años. ¿Qué rentabilidad habrás obtenido si al cabo de diez años se cumplen tus previsiones y vendes el piso? | J66: 0 | K66: 0.0661414758
B68: Cálculo con Perpetuidad | D68: K = | E68: g = | F68: CF = | G68: VA =
D69: 0.1 | E69: 0.03 | F69: 1 | G69: =F69/(D69-E69) -> 14.28571429
A70: 17 | B70: La acción ABC promete un dividendo de 1 euro anual. No esperas que el precio de la acción suba ni baje en el futuro. Quieres obtener a tu inversión en bolsa una rentabilidad K del 10 %. ¿Qué precio deberías pagar por la acción? | J70: =IF(I70=K70,1,0) -> 0 | K70: 10
A71: =A70+1 -> 18 | B71: Mismos datos. Esperas que el dividendo de 1 euro crezca un 3 % cada año. ¿Qué precio deberías pagar por la acción? | J71: =IF(I71=K71,1,0) -> 0 | K71: 14.28571429
A72: 19 | B72: Has comprado un piso por 200.000 euros. Esperas obtener un alquiler de 10.000 euros el primer año, con una subida anual del 2%. ¿Qué rentabilidad obtienes? | J72: =IF(I72=K72,1,0) -> 0 | K72: 0.07
A73: 20 | B73: Has comprado un piso por 200.000 euros. Esperas obtener un alquiler de 10.000 euros el primer año. ¿Qué tasa de crecimiento g debe tener el alquiler para que tu rentabilidad esperada llegue al 8%? | J73: =IF(I73=K73,1,0) -> 0 | K73: 0.03
H75: Total Respuestas correctas | J75: =SUM(J51:J73) -> 0
H76: Máxima puntuación posible | J76: 20
B77: ULTIMA PREGUNTA
A78: 21 | B78: Calcular la TIR, el VA y el VAN de las inversiones A, B, C y D, cuyos cash flows esperados y tasa de rentabilidad exigida K figuran en el cuadro inferior.
B80: Proyecto | C80: A | D80: B | E80: C | F80: D
B81: Rent exigida K | C81: 0.1 | D81: 0.1 | E81: 0.1 | F81: 0.1
B82: 0 | C82: -100 | D82: -100 | E82: -40 | F82: -100
B83: 1 | C83: 10 | D83: -20 | E83: -20 | F83: -20
B84: 2 | C84: 10 | D84: 0 | E84: -10 | F84: 0
B85: 3 | C85: 10 | D85: 10 | E85: 0 | F85: 10
B86: 4 | C86: 10 | D86: 20 | E86: 10 | F86: 20
B87: 5 | C87: 10 | D87: 30 | E87: 15 | F87: 30
B88: 6 | C88: 10 | D88: 30 | E88: 20 | F88: 40
B89: 7 | C89: 10 | D89: 30 | E89: 20 | F89: 40
B90: 8 | C90: 10 | D90: 20 | E90: 20 | F90: 40
B91: 9 | C91: 10 | D91: 20 | E91: 15 | F91: 50
B92: 10 | C92: 110 | D92: 100 | E92: 20 | F92: 50
B94: Suma de cash flows | C94: 100 | D94: 140 | E94: 50 | F94: 160
B95: TIR o IRR =
B96: VA o PV =
B97: VAN o NPV =
B99: RESPUESTAS CORRECTAS
B100: Suma de cash flows | C100: =SUM(C82:C92) -> 100 | D100: =SUM(D82:D92) -> 140 | E100: =SUM(E82:E92) -> 50 | F100: =SUM(F82:F92) -> 160
B101: TIR o IRR = | C101: =IRR(C82:C92,0.1) -> 0.1 | D101: =IRR(D82:D92,0.1) -> 0.1133369249 | E101: =IRR(E82:E92,0.1) -> 0.08570045041 | F101: =IRR(F82:F92,0.1) -> 0.1305996236
B102: VA o PV = | C102: =NPV(C81,C83:C92) -> 100 | D102: =NPV(D81,D83:D92) -> 110.314629 | E102: =NPV(E81,E83:E92) -> 34.65279204 | F102: =NPV(F81,F83:F92) -> 123.8668612
B103: VAN o NPV = | C103: =C102+C82 -> 0 | D103: =D102+D82 -> 10.31462899 | E103: =E102+E82 -> -5.347207958 | F103: =F102+F82 -> 23.86686116

Sheet Perguntas Port (hidden)
B1: CAP. 5 PREGUNTAS DE AUTOEVALUACION (Conceptos)
B2: Son las mismas que tienes en el Cap 5. Para estas preguntas no necesitas hacer ningún cálculo, pero sí tener claros los conceptos.
B3: Responder V o F en columna "I". Respuesta correcta en columna K. Repuesta correcta = +1. Incorrecta = -1. En blanco = 0. | J3: -1
B4: Preguntas sobre VA, VF, TIR y K | I4: Tu Res- | J4: Califi- | K4: Respuesta
B5: Bono A. Vencimiento 3 años. Cupón de 5€ año. Al vencimiento recibes 100€. Precio 100€. | I5: puesta | J5: cación | K5: Correcta
A6: 1 | B6: Bono A. Tu rentabilidad esperada es de 5%. V o F? | J6: =IF(I6=K6,1,IF(I6="",0,$J$3)) -> 0 | K6: V
A7: 2 | B7: Ahora lo compras por 95€, tu rentabilidad esperada será menor que 5%. V o F? | J7: =IF(I7=K7,1,IF(I7="",0,$J$3)) -> 0 | K7: F
A8: 3 | B8: Mismo bono A, pero paga 2,5€ de cupón cada semestre. La TAE del bono o TIR será la misma, es decir 5%. V o F? | J8: 0 | K8: F
A9: 4 | B9: Igual que pregunta 3. La rentabilidad simple anual será del 5%. V o F? | J9: 0 | K9: V
A10: 5 | B10: Mismo bono A. Quieres obtener una rentabilidad superior al 5%, por tanto deberías pagar más de 100€. V o F? | J10: 0 | K10: F
A11: 6 | B11: Bono A. Han bajado los tipos de interés en el mercado y el bono A cotiza al 4%. Su precio de mercado seguro que es mayor que 100€ V o F? | J11: 0 | K11: V
A12: 7 | B12: Si bajan los tipos de interés o rentabilidad exigida K del bono, este sube de precio. V o F? | J12: 0 | K12: V
A13: 8 | B13: Bono cupón cero (no paga cupones). A vencimiento te pagan 100€. Para obtener una rentabilidad del 5% deberías pagar más que su valor par (100€). V o F? | J13: 0 | K13: F
A14: 9 | B14: Cuando suben los tipos de interés baja el precio de los bonos y de casi todos los activos. V o F? | J14: 0 | K14: V
B15: Preguntas sobre VAN, VA y TIR
A16: 10 | B16: Si un proyecto tiene un VAN positivo, su TIR es mayor que la rentabilidad exigida K. V o F? | J16: 0 | K16: V
A17: =A16+1 -> 11 | B17: El VAN nos dice la rentabilidad que un proyecto promete, pero expresada en euros y no en porcentaje. V o F? | J17: 0 | K17: F
A18: =A17+1 -> 12 | B18: El VAN me indica el valor que un proyecto puede añadir al valor de la compañía. V o F? | J18: 0 | K18: V
A19: 13 | B19: El VAN de un proyecto me dice los euros que ese proyecto genera para la empresa. V o F? | J19: 0 | K19: F
A20: 14 | B20: La cantidad inicial a invertir en un proyecto de inversión me la indica el VAN de ese proyecto. V o F? | J20: 0 | K20: F
A21: 15 | B21: La TIR es la rentabilidad de la cantidad inicial invertida en el año 0. V o F? | J21: 0 | K21: V
A22: 16 | B22: En la compra de una empresa el VA para mi indica lo que debería pagar por ella. V o F? | J22: 0 | K22: V
A23: 17 | B23: El VA depende exclusivamente de los cash flows que promete ese proyecto. V o F? | J23: 0 | K23: F
A24: 18 | B24: VAN y NPV son el mismo concepto. V o F? | J24: 0 | K24: V
A25: 19 | B25: NPV es lo mismo que valor actual VA. V o F? | J25: 0 | K25: F
B26: Preguntas sobre la Perpetuidad
A27: 20 | B27: Fórmula de la perpetuidad. La K indica la rentabilidad que le exiges a la inversión. V o F? | J27: 0 | K27: V
A28: =A27+1 -> 21 | B28: Como CF de la perpetuidad debes usar el que sea sostenible durante muchos años futuros. V o F? | J28: 0 | K28: V
A29: 22 | B29: Puedo usar la perpetuidad para calcular la rentabilidad espera en una inversión que dura 5 años. V o F? | J29: 0 | K29: F
A30: 23 | B30: En la perpetuidad, una hipótesis de (K-g) = (3%- 2,5%) es perfectamente razonable. V o F? | J30: 0 | K30: F
A31: 24 | B31: Para usar la fórmula de la perpetuidad es necesario que los CF futuros sean casi iguales. V o F? | J31: 0 | K31: V
A32: 25 | B32: En una startup es lógico usar la perpetuidad para calcular el valor de la empresa. V o F? | J32: 0 | K32: F
H34: Puntos obtenidos | J34: =SUM(J6:J32) -> 0
H35: Si tienes menso de 15, deberías repasar
B37: CALCULO FINANCIERO CON EXCEL. PREGUNTAS Y RESPUESTAS CAP 5.
B38: Para responder (Col. I) haz copy & paste del número que aparece en resultados (G43:G47) en amarillo.
B39: Respuesta correcta = 1; error = 0. Solución correcta y comentarios en Col. K
B40: Las fórmulas ya están introducidas en las celdas 43:G47. Ver los comentarios en cada celda.
B42: DATOS para preguntas 1 a 16 | D42: Datos | E42: Unidad | F42: RESULTADOS
B43: Rentabilidad exigida (K) | C43: Required return (K) | D43: 0.04 | F43: VA= | G43: =PV(D43,D44,D45,D47) -> -9428.660343 | H43: PV
B44: Vencimiento | C44: Maturity | D44: 1.5 | E44: años o semestres | F44: VF= | G44: =FV(D43,D44,D45,D46) -> 0 | H44: FV
B45: Pago o cupón | C45: Payment PMT | D45: 0 | E45: euros | F45: Tasa= | G45: =RATE(D44,D45,D46,D47) ->  | H45: Rate
B46: Valor actual (VA) | C46: Present value PV | F46: Int simple | G46: =G45*D48 ->  | H46: APR
B47: Valor futuro (VF) | C47: Future value FV | D47: 10000 | E47: euros | F47: TAE = | G47: =EFFECT(G46,D48) ->  | H47: Effect
B48: Periodos de pago por año | D48: 1
I49: Tu Res- | J49: Califi- | K49: Respuesta
B50: PREGUNTAS AUTOEVALUACION CAP 5. Cálculos | I50: puesta | J50: cación | K50: Correcta
A51: 1 | B51: Pagaré de empresa a 18 meses. Valor nominal, que obtendremos al vencimiento, 10.000 euros. No paga cupones. ¿Cuánto debes pagar por el pagaré para obtener una rentabilidad del 4 %? | J51: =IF(I51=K51,1,0) -> 0 | K51: -9428.660343
A52: =A51+1 -> 2 | B52: ¿Cuánto debes pagar si quieres que la rentabilidad sea del 5 %? | J52: 0 | K52: -9294.286409
A53: =A52+1 -> 3 | B53: ¿Cuánto debes pagar si quieres que la rentabilidad sea del 4 % y el pagaré tiene un vencimiento de 12 meses? | J53: 0 | K53: -9615.384615
A54: 4 | B54: Letra del Tesoro, vencimiento 12 meses. No paga cupones. Valor facial 100.000 euros. Pagas 97.327 euros. ¿Qué rentabilidad obtienes al vencimiento? | J54: 0 | K54: 0.02746411582
A55: 5 | B55: Con los mismos datos, ¿qué rentabilidad obtienes si el vencimiento es a 18 meses? | J55: 0 | K55: 0.01822660881
A56: 6 | B56: Inviertes 10.000 euros en un depósito a plazo a tres años y al 4 %. Los intereses se pagan al final. ¿Cuántos euros recibirás? | J56: 0 | K56: 11248.64
A57: 7 | B57: Con los mismos datos, ¿cuántos euros recibirás si el plazo es cinco años? | J57: 0 | K57: 12166.52902
A58: 8 | B58: Bono del Estado con vencimiento diez años. Valor nominal 1.000 euros. Cupón anual del 4 % ó 40 euros al año. ¿Cuánto debes pagar para obtener una rentabilidad del 4 %? | J58: 0 | K58: -1000
A59: 9 | B59: Mismos datos. ¿Cuánto debes pagar para obtener una rentabilidad del 5%? | J59: 0 | K59: -922.7826507
A60: 10 | B60: Mismos datos que en la pregunta 8. ¿Cuánto debes pagar para obtener una rentabilidad del 3 %? | J60: 0 | K60: -1085.302028
A61: 11 | B61: Mismo bono 8. Compras a 950 euros. ¿Qué rentabilidad anual habrás obtenido al vencimiento? | J61: 0 | K61: 0.04636130543
A62: 12 | B62: Mismo bono 8. Pagas 900 euros. ¿Qué rentabilidad anual habrás obtenido al vencimiento? | J62: 0 | K62: 0.05314925812
A63: 13 | B63: Mismo bono. Pero ahora, el cupón se paga semestralmente (20 euros por semestre). Si pagas 1.000 euros, ¿qué rentabilidad semestral habrás obtenido al vencimiento? | J63: 0 | K63: 0.02
A64: 14 | B64: Mismos datos que en la pregunta 13. ¿Cuál es la rentabilidad anual simple que has obtenido? | J64: 0 | K64: 0.04
A65: 15 | B65: Mismos datos que en la pregunta 13. ¿Cuál es la rentabilidad anual efectiva o TIR que has obtenido? | J65: 0 | K65: 0.0404
A66: 16 | B66: Has comprado un piso por 200.000 euros. Esperas obtener un alquiler de 10.000 euros cada año. También esperas que en promedio el piso se revalorice un 2 % anual durante los próximos diez años. ¿Qué rentabilidad habrás obtenido si al cabo de diez años se cumplen tus previsiones y vendes el piso? | J66: 0 | K66: 0.0661414758
B68: Cálculo con Perpetuidad | D68: K = | E68: g = | F68: CF = | G68: VA =
D69: 0.1 | E69: 0.03 | F69: 1 | G69: =F69/(D69-E69) -> 14.28571429
A70: 17 | B70: La acción ABC promete un dividendo de 1 euro anual. No esperas que el precio de la acción suba ni baje en el futuro. Quieres obtener a tu inversión en bolsa una rentabilidad K del 10 %. ¿Qué precio deberías pagar por la acción? | J70: =IF(I70=K70,1,0) -> 0 | K70: 10
A71: =A70+1 -> 18 | B71: Mismos datos. Esperas que el dividendo de 1 euro crezca un 3 % cada año. ¿Qué precio deberías pagar por la acción? | J71: =IF(I71=K71,1,0) -> 0 | K71: 14.28571429
A72: 19 | B72: Has comprado un piso por 200.000 euros. Esperas obtener un alquiler de 10.000 euros el primer año, con una subida anual del 2%. ¿Qué rentabilidad obtienes? | J72: =IF(I72=K72,1,0) -> 0 | K72: 0.07
A73: 20 | B73: Has comprado un piso por 200.000 euros. Esperas obtener un alquiler de 10.000 euros el primer año. ¿Qué tasa de crecimiento g debe tener el alquiler para que tu rentabilidad esperada llegue al 8%? | J73: =IF(I73=K73,1,0) -> 0 | K73: 0.03
H75: Total Respuestas correctas | J75: =SUM(J51:J73) -> 0
H76: Máxima puntuación posible | J76: 20
B77: ULTIMA PREGUNTA
A78: 21 | B78: Calcular la TIR, el VA y el VAN de las inversiones A, B, C y D, cuyos cash flows esperados y tasa de rentabilidad exigida K figuran en el cuadro inferior.
B80: Proyecto | C80: A | D80: B | E80: C | F80: D
B81: Rent exigida K | C81: 0.1 | D81: 0.1 | E81: 0.1 | F81: 0.1
B82: 0 | C82: -100 | D82: -100 | E82: -40 | F82: -100
B83: 1 | C83: 10 | D83: -20 | E83: -20 | F83: -20
B84: 2 | C84: 10 | D84: 0 | E84: -10 | F84: 0
B85: 3 | C85: 10 | D85: 10 | E85: 0 | F85: 10
B86: 4 | C86: 10 | D86: 20 | E86: 10 | F86: 20
B87: 5 | C87: 10 | D87: 30 | E87: 15 | F87: 30
B88: 6 | C88: 10 | D88: 30 | E88: 20 | F88: 40
B89: 7 | C89: 10 | D89: 30 | E89: 20 | F89: 40
B90: 8 | C90: 10 | D90: 20 | E90: 20 | F90: 40
B91: 9 | C91: 10 | D91: 20 | E91: 15 | F91: 50
B92: 10 | C92: 110 | D92: 100 | E92: 20 | F92: 50
B94: Suma de cash flows | C94: 100 | D94: 140 | E94: 50 | F94: 160
B95: TIR o IRR =
B96: VA o PV =
B97: VAN o NPV =
B99: RESPUESTAS CORRECTAS
B100: Suma de cash flows | C100: =SUM(C82:C92) -> 100 | D100: =SUM(D82:D92) -> 140 | E100: =SUM(E82:E92) -> 50 | F100: =SUM(F82:F92) -> 160
B101: TIR o IRR = | C101: =IRR(C82:C92,0.1) -> 0.1 | D101: =IRR(D82:D92,0.1) -> 0.1133369249 | E101: =IRR(E82:E92,0.1) -> 0.08570045041 | F101: =IRR(F82:F92,0.1) -> 0.1305996236
B102: VA o PV = | C102: =NPV(C81,C83:C92) -> 100 | D102: =NPV(D81,D83:D92) -> 110.314629 | E102: =NPV(E81,E83:E92) -> 34.65279204 | F102: =NPV(F81,F83:F92) -> 123.8668612
B103: VAN o NPV = | C103: =C102+C82 -> 0 | D103: =D102+D82 -> 10.31462899 | E103: =E102+E82 -> -5.347207958 | F103: =F102+F82 -> 23.86686116

Sheet Perguntas-2 (hidden)
B1: Exercício 5.1 | H1: Exercício 5.2 | N1: Exercício 5.3 | T1: Exercício 5.4 | Y1: Exercício 5.5 | AD1: Exercício 5.6 | AI1: Exercício 5.7 | AN1: Exercício 5.8 | AU1: Exercício 5.9 | BB1: Exercício 5.10 | BI1: Exercício 5.11 | BP1: Exercício 5.12 | BW1: Exercício 5.13 | CD1: Exercício 5.13 | CJ1: Exercício 5.16 | CZ1: Exercício 5.17 | DG1: Exercício 5.18 | DN1: Exercício 5.19 | DV1: Exercício 5.20
B3: n = | C3: 18 | D3: meses | H3: n = | I3: 18 | J3: meses | N3: n = | O3: 12 | P3: meses | T3: n = | U3: 12 | V3: meses | Y3: n = | Z3: 18 | AA3: meses | AD3: n = | AE3: 3 | AF3: anos | AI3: n = | AJ3: 5 | AK3: anos | AN3: n = | AO3: 10 | AP3: anos | AU3: n = | AV3: 10 | AW3: anos | BB3: n = | BC3: 10 | BD3: anos | BI3: n = | BJ3: 10 | BK3: anos | BP3: n = | BQ3: 10 | BR3: anos | BW3: n = | BX3: 10 | BY3: anos | CD3: Taxa Efetiva | CE3: =BX15 -> 0.02 | CF3: ao semestre | CJ3: Projeto | CK3: A | CN3: B | CQ3: C | CT3: D | CZ3: Ação ABC | DG3: Ação ABC | DN3: Preço apto | DO3: 200000 | DP3: euros | DV3: Preço apto | DW3: 200000 | DX3: euros
B4: VF = | C4: 10000 | D4: (inclui os juros) | H4: VF = | I4: 10000 | J4: (inclui os juros) | N4: VF = | O4: 10000 | P4: (inclui os juros) | T4: VF = | U4: 100000 | Y4: VF = | Z4: 100000 | AD4: r = | AE4: 0.04 | AF4: ao ano | AI4: r = | AJ4: 0.04 | AK4: ao ano | AN4: VF = | AO4: 1000 | AP4: ao ano | AU4: VF = | AV4: 1000 | AW4: ao ano | BB4: VF = | BC4: 1000 | BD4: ao ano | BI4: VF = | BJ4: 1000 | BK4: ao ano | BP4: VF = | BQ4: 1000 | BR4: ao ano | BW4: VF = | BX4: 1000 | CJ4: Taxa | CL4: 0.1 | CO4: 0.1 | CR4: 0.1 | CU4: 0.1 | DN4: Aluguel | DO4: 10000 | DP4: euros / mês | DV4: Aluguel | DW4: 10000 | DX4: euros / mês
B5: r = | C5: 0.04 | D5: ao ano | H5: r = | I5: 0.05 | J5: ao ano | N5: r = | O5: 0.04 | P5: ao ano | T5: PV = | U5: 97327 | Y5: PV = | Z5: 97327 | AD5: PV = | AE5: 10000 | AI5: PV = | AJ5: 10000 | AN5: Cupom = | AO5: 0.04 | AP5: ao ano | AQ5: =AO5*AO4 -> 40 | AR5: por ano | AU5: Cupom = | AV5: 0.04 | AW5: ao ano | AX5: =AV5*AV4 -> 40 | AY5: por ano | BB5: Cupom = | BC5: 0.04 | BD5: ao ano | BE5: =BC5*BC4 -> 40 | BF5: por ano | BI5: Cupom = | BJ5: 0.04 | BK5: ao ano | BL5: =BJ5*BJ4 -> 40 | BM5: por ano | BP5: Cupom = | BQ5: 0.04 | BR5: ao ano | BS5: =BQ5*BQ4 -> 40 | BT5: por ano | BW5: Cupom = | BX5: 0.04 | BY5: ao ano, pagos semestralmente | CD5: APR (taxa simples) | CE5: =CE3*2 -> 0.04 | CF5: ao ano | CJ5: Período | CK5: FC | CL5: Fator Desc. | CM5: VP | CN5: FC | CO5: Fator Desc. | CP5: VP | CQ5: FC | CR5: Fator Desc. | CS5: VP | CT5: FC | CU5: Fator Desc. | CV5: VP | CZ5: Dividendo (euro) | DB5: 1 | DC5: anual | DG5: Dividendo (euro) | DI5: 1 | DJ5: anual | DN5: g aluguel | DO5: 0.05 | DP5: ao ano | DV5: g aluguel | DW5: 0.05 | DX5: ao ano
AN6: r = | AO6: 0.04 | AP6: ao ano | AU6: r = | AV6: 0.05 | AW6: ao ano | BB6: r = | BC6: 0.03 | BD6: ao ano | BI6: PV = | BJ6: 950 | BP6: PV = | BQ6: 900 | BX6: =(BX5/2)*BX4 -> 20 | BY6: por semestre | CJ6: 0 | CK6: -100 | CL6: =(1+$CL$4)^CJ6 -> 1 | CM6: =CK6/CL6 -> -100 | CN6: -100 | CO6: =(1+$CO$4)^$CJ6 -> 1 | CP6: =CN6/CO6 -> -100 | CQ6: -40 | CR6: =(1+$CR$4)^$CJ6 -> 1 | CS6: =CQ6/CR6 -> -40 | CT6: -100 | CU6: =(1+$CU$4)^$CJ6 -> 1 | CV6: =CT6/CU6 -> -100 | CZ6: K | DB6: 0.1 | DC6: ao ano | DG6: K | DI6: 0.1 | DJ6: ao ano
B7: 2 métodos: | H7: 2 métodos: | N7: 2 métodos: | T7: 2 métodos: | Y7: 2 métodos: | AD7: 2 métodos: | AI7: 2 métodos: | BW7: r = | BX7: 0.04 | BY7: ao ano | CJ7: 1 | CK7: 10 | CL7: 1.1 | CM7: 9.090909091 | CN7: -20 | CO7: 1.1 | CP7: -18.18181818 | CQ7: -20 | CR7: 1.1 | CS7: -18.18181818 | CT7: -20 | CU7: 1.1 | CV7: -18.18181818 | DG7: g | DI7: 0.03 | DJ7: ao ano | DN7: K = | DO7: =DO4/DO3+DO5 -> 0.1 | DV7: Periodo | DW7: Aluguel | DX7: Valorização | DY7: FC | EA7: Fator Desc. | EB7: PV
AN8: 2 métodos: | AU8: 2 métodos: | BB8: 2 métodos: | BI8: 1) Manual | BP8: 1) Manual | BX8: =BX7/2 -> 0.02 | BY8: ao semestre | CD8: Exercício 5.14 | CJ8: =+CJ7+1 -> 2 | CK8: =CK7 -> 10 | CL8: 1.21 | CM8: 8.26446281 | CN8: 0 | CO8: 1.21 | CP8: 0 | CQ8: -10 | CR8: 1.21 | CS8: -8.26446281 | CT8: 0 | CU8: 1.21 | CV8: 0 | DV8: 0 | DW8: =-DW3 -> -200000 | DY8: =DW8+DX8 -> -200000 | EA8: =(1+$EA$21)^DV8 -> 1 | EB8: =DY8/EA8 -> -200000
B9: 1) Fórmula | H9: 1) Formula | N9: 1) Formula | T9: 1) Formula | Y9: 1) Formula | AD9: 1) Formula | AI9: 1) Formula | BJ9: r = | BK9: 0.04636130568 | BL9: ao ano | BQ9: r = | BR9: 0.05314925812 | BS9: ao ano | BW9: PV = | BX9: 1000 | CJ9: 3 | CK9: 10 | CL9: 1.331 | CM9: 7.513148009 | CN9: 10 | CO9: 1.331 | CP9: 7.513148009 | CQ9: 0 | CR9: 1.331 | CS9: 0 | CT9: 10 | CU9: 1.331 | CV9: 7.513148009 | CZ9: Vpperp = | DA9: =DB5/DB6 -> 10 | DB9: = | DC9: =SUM(DC13:DC234) -> 9.999274343 | DG9: Vpperp = | DH9: =DI5/(DI6-DI7) -> 14.28571429 | DI9: = | DJ9: =SUM(DJ13:DJ298) -> 14.28571415 | DP9: K = | DQ9: 0.09 | DR9: Meta = 0 | DV9: 1 | DW9: =DW4 -> 10000 | DY9: 10000 | EA9: 1.09116443 | EB9: 9164.521615
AN10: 1) Fórmula Excel | AU10: 1) Fórmula Excel | BB10: 1) Fórmula Excel | CD10: Taxa Efetiva Sem. | CE10: 0.02 | CF10: ao semestre | CJ10: 4 | CK10: 10 | CL10: 1.4641 | CM10: 6.830134554 | CN10: 20 | CO10: 1.4641 | CP10: 13.66026911 | CQ10: 10 | CR10: 1.4641 | CS10: 6.830134554 | CT10: 20 | CU10: 1.4641 | CV10: 13.66026911 | DP10: Soma VPs | DQ10: =SUM(DQ13:DQ1000) -> 250000 | DR10: =DQ10-DO3 -> 50000 | DV10: 2 | DW10: =DW9 -> 10000 | DY10: 10000 | EA10: 1.190639812 | EB10: 8398.845643
B11: n = | C11: =C3/12 -> 1.5 | D11: anos | H11: n = | I11: =I3/12 -> 1.5 | J11: anos | N11: n = | O11: =O3/12 -> 1 | P11: anos | T11: n = | U11: =U3/12 -> 1 | V11: ano | Y11: n = | Z11: =Z3/12 -> 1.5 | AA11: ano | AD11: FV = | AE11: =AE5*(1+AE4)^AE3 -> 11248.64 | AI11: FV = | AJ11: =AJ5*(1+AJ4)^AJ3 -> 12166.52902 | BI11: Período | BJ11: FC | BK11: Fator Desc. | BL11: PV | BP11: Período | BQ11: FC | BR11: Fator Desc. | BS11: PV | BW11: 2 métodos: | CJ11: 5 | CK11: 10 | CL11: 1.61051 | CM11: 6.209213231 | CN11: 30 | CO11: 1.61051 | CP11: 18.62763969 | CQ11: 15 | CR11: 1.61051 | CS11: 9.313819846 | CT11: 30 | CU11: 1.61051 | CV11: 18.62763969 | CZ11: Periodo | DA11: Dividendo | DB11: Fat Desc. | DC11: VP | DG11: Periodo | DH11: Dividendo | DI11: Fat Desc. | DJ11: VP | DN11: Periodo | DO11: Aluguel | DP11: Fat Desc. | DQ11: VP | DV11: 3 | DW11: 10000 | DY11: 10000 | EA11: 1.299183812 | EB11: 7697.140243
AN12: PV = | AO12: =PV(AO6,AO3,AQ5,AO4,0) -> -1000 | AU12: PV = | AV12: =PV(AV6,AV3,AX5,AV4,0) -> -922.7826507 | BB12: PV = | BC12: =PV(BC6,BC3,BE5,BC4,0) -> -1085.302028 | BI12: 0 | BJ12: =-BJ6 -> -950 | BK12: =(1+$BK$9)^BI12 -> 1 | BL12: =BJ12/BK12 -> -950 | BP12: 0 | BQ12: =-BQ6 -> -900 | BR12: =(1+$BR$9)^BP12 -> 1 | BS12: =BQ12/BR12 -> -900 | CD12: Taxa Efetiva Anual | CE12: =(1+CE10)^2-1 -> 0.0404 | CF12: ao ano | CJ12: 6 | CK12: 10 | CL12: 1.771561 | CM12: 5.644739301 | CN12: 30 | CO12: 1.771561 | CP12: 16.9342179 | CQ12: 20 | CR12: 1.771561 | CS12: 11.2894786 | CT12: 40 | CU12: 1.771561 | CV12: 22.5789572 | CZ12: 0 | DG12: 0 | DN12: 0 | DV12: 4 | DW12: 10000 | DY12: 10000 | EA12: 1.417623163 | EB12: 7054.060813
B13: PV = | C13: =C4/(1+C5)^C11 -> 9428.660343 | H13: PV = | I13: =I4/(1+I5)^I11 -> 9294.286409 | N13: PV = | O13: =O4/(1+O5)^O11 -> 9615.384615 | T13: r = | U13: =U4/U5-1 -> 0.02746411582 | V13: ao ano | Y13: r = | Z13: =(Z4/Z5)^(1/Z11)-1 -> 0.01822660881 | BI13: 1 | BJ13: =BL5 -> 40 | BK13: 1.046361306 | BL13: 38.2277133 | BP13: 1 | BQ13: =BS5 -> 40 | BR13: 1.053149258 | BS13: 37.98132097 | BW13: 1) Fórmula Excel | CJ13: 7 | CK13: 10 | CL13: 1.9487171 | CM13: 5.131581182 | CN13: 30 | CO13: 1.9487171 | CP13: 15.39474355 | CQ13: 20 | CR13: 1.9487171 | CS13: 10.26316236 | CT13: 40 | CU13: 1.9487171 | CV13: 20.52632473 | CZ13: 1 | DA13: =DB5 -> 1 | DB13: =(1+$DB$6)^CZ13 -> 1.1 | DC13: =DA13/DB13 -> 0.9090909091 | DG13: 1 | DH13: =DI5 -> 1 | DI13: =(1+$DI$6)^DG13 -> 1.1 | DJ13: =DH13/DI13 -> 0.9090909091 | DN13: 1 | DO13: =DO4 -> 10000 | DP13: =(1+$DQ$9)^DN13 -> 1.09 | DQ13: =DO13/DP13 -> 9174.311927 | DV13: 5 | DW13: 10000 | DY13: 10000 | EA13: 1.54685997 | EB13: 6464.709279
AD14: 2) Fórmula Excel | AI14: 2) Fórmula Excel | BI14: =+BI13+1 -> 2 | BJ14: =BJ13 -> 40 | BK14: 1.094871982 | BL14: 36.5339516 | BP14: =+BP13+1 -> 2 | BQ14: =BQ13 -> 40 | BR14: 1.10912336 | BS14: 36.06451856 | CJ14: 8 | CK14: 10 | CL14: 2.14358881 | CM14: 4.665073802 | CN14: 20 | CO14: 2.14358881 | CP14: 9.330147604 | CQ14: 20 | CR14: 2.14358881 | CS14: 9.330147604 | CT14: 40 | CU14: 2.14358881 | CV14: 18.66029521 | CZ14: 2 | DA14: =DA13 -> 1 | DB14: 1.21 | DC14: 0.826446281 | DG14: 2 | DH14: =DH13*(1+$DI$7) -> 1.03 | DI14: 1.21 | DJ14: 0.8512396694 | DN14: 2 | DO14: =DO13*(1+$DO$5) -> 10500 | DP14: 1.1881 | DQ14: 8837.639929 | DV14: 6 | DW14: 10000 | DY14: 10000 | EA14: 1.687878576 | EB14: 5924.596792
AN15: 2) Resolução Manual | AU15: 2) Resolução Manual | BB15: 2) Resolução Manual | BI15: 3 | BJ15: 40 | BK15: 1.145631677 | BL15: 34.91523569 | BP15: 3 | BQ15: 40 | BR15: 1.168072444 | BS15: 34.24445138 | BW15: PV = | BX15: =IRR(BX21:BX41) -> 0.02 | BY15: ao semestre | CJ15: 9 | CK15: 10 | CL15: 2.357947691 | CM15: 4.240976184 | CN15: 20 | CO15: 2.357947691 | CP15: 8.481952367 | CQ15: 15 | CR15: 2.357947691 | CS15: 6.361464276 | CT15: 50 | CU15: 2.357947691 | CV15: 21.20488092 | CZ15: 3 | DA15: 1 | DB15: 1.331 | DC15: 0.7513148009 | DG15: 3 | DH15: 1.0609 | DI15: 1.331 | DJ15: 0.7970698723 | DN15: 3 | DO15: 11025 | DP15: 1.295029 | DQ15: 8513.322868 | DV15: 7 | DW15: 10000 | DY15: 10000 | EA15: 1.841753064 | EB15: 5429.609536
B16: 2) Fórmula Excel | H16: 2) Fórmula Excel | N16: 2) Fórmula Excel | T16: 2) Fórmula Excel | Y16: 2) Fórmula Excel | AD16: FV = | AE16: =FV(AE4,AE3,0,-AE5,0) -> 11248.64 | AI16: FV = | AJ16: =FV(AJ4,AJ3,0,-AJ5,0) -> 12166.52902 | BI16: 4 | BJ16: 40 | BK16: 1.198744657 | BL16: 33.36824049 | BP16: 4 | BQ16: 40 | BR16: 1.230154627 | BS16: 32.51623748 | CJ16: 10 | CK16: =CK15+100 -> 110 | CL16: 2.59374246 | CM16: 42.40976184 | CN16: 100 | CO16: 2.59374246 | CP16: 38.55432894 | CQ16: 20 | CR16: 2.59374246 | CS16: 7.710865789 | CT16: 50 | CU16: 2.59374246 | CV16: 19.27716447 | CZ16: 4 | DA16: 1 | DB16: 1.4641 | DC16: 0.6830134554 | DG16: 4 | DH16: 1.092727 | DI16: 1.4641 | DJ16: 0.746347244 | DN16: 4 | DO16: 11576.25 | DP16: 1.41158161 | DQ16: 8200.90735 | DV16: 8 | DW16: 10000 | DY16: 10000 | EA16: 2.009655431 | EB16: 4975.977396
AN17: Período | AO17: FC | AP17: Fator Desc. | AQ17: PV | AU17: Período | AV17: FC | AW17: Fator Desc. | AX17: PV | BB17: Período | BC17: FC | BD17: Fator Desc. | BE17: PV | BI17: 5 | BJ17: 40 | BK17: 1.254320024 | BL17: 31.88978827 | BP17: 5 | BQ17: 40 | BR17: 1.295536433 | BS17: 30.87524131 | CL17: VP | CM17: =SUM(CM7:CM16) -> 100 | CO17: VP | CP17: =SUM(CP7:CP16) -> 110.314629 | CR17: VP | CS17: =SUM(CS7:CS16) -> 34.65279204 | CU17: VP | CV17: =SUM(CV7:CV16) -> 123.8668612 | CZ17: 5 | DA17: 1 | DB17: 1.61051 | DC17: 0.6209213231 | DG17: 5 | DH17: 1.12550881 | DI17: 1.61051 | DJ17: 0.6988524194 | DN17: 5 | DO17: 12155.0625 | DP17: 1.538623955 | DQ17: 7899.956621 | DV17: 9 | DW17: 10000 | DY17: 10000 | EA17: 2.192864522 | EB17: 4560.24524
B18: PV | C18: =PV(C5,C11,0,C4,0) -> -9428.660343 | H18: PV | I18: =PV(I5,I11,0,I4,0) -> -9294.286409 | N18: PV | O18: =PV(O5,O11,0,O4,0) -> -9615.384615 | T18: r = | U18: =RATE(U11,0,-U5,U4,0,) -> 0.02746411582 | V18: ao ano | Y18: r = | Z18: =RATE(Z11,0,-Z5,Z4,0,) -> 0.01822660881 | AN18: 0 | AO18: ? | AP18: =(1+$AO$6)^AN18 -> 1 | AQ18: =SUM(AQ19:AQ28) -> 1000 | AU18: 0 | AV18: ? | AW18: =(1+$AV$6)^AU18 -> 1 | AX18: =SUM(AX19:AX28) -> 922.7826507 | BB18: 0 | BC18: ? | BD18: =(1+$BC$6)^BB18 -> 1 | BE18: =SUM(BE19:BE28) -> 1085.302028 | BI18: 6 | BJ18: 40 | BK18: 1.312471939 | BL18: 30.47684208 | BP18: 6 | BQ18: 40 | BR18: 1.364393234 | BS18: 29.31706125 | BW18: 2) Resolução Manual | CL18: ou | CZ18: 6 | DA18: 1 | DB18: 1.771561 | DC18: 0.5644739301 | DG18: 6 | DH18: 1.159274074 | DI18: 1.771561 | DJ18: 0.6543799927 | DN18: 6 | DO18: 12762.81563 | DP18: 1.677100111 | DQ18: 7610.049956 | DV18: 10 | DW18: 10000 | DX18: =DW3*(1+DW5)^DV18 -> 325778.9254 | DY18: 335778.9254 | EA18: 2.392775766 | EB18: 140330.2934
AN19: 1 | AO19: =AQ5 -> 40 | AP19: 1.04 | AQ19: =AO19/AP19 -> 38.46153846 | AU19: 1 | AV19: =AX5 -> 40 | AW19: 1.05 | AX19: =AV19/AW19 -> 38.0952381 | BB19: 1 | BC19: =BE5 -> 40 | BD19: 1.03 | BE19: =BC19/BD19 -> 38.83495146 | BI19: 7 | BJ19: 40 | BK19: 1.373319851 | BL19: 29.12649953 | BP19: 7 | BQ19: 40 | BR19: 1.436909722 | BS19: 27.83751783 | CL19: VP | CM19: =PV(CL4,CJ16,CK7,100,) -> -100 | CZ19: 7 | DA19: 1 | DB19: 1.9487171 | DC19: 0.5131581182 | DG19: 7 | DH19: 1.194052297 | DI19: 1.9487171 | DJ19: 0.6127376296 | DN19: 7 | DO19: 13400.95641 | DP19: 1.828039121 | DQ19: 7330.782068
H20: Para obter mais rentabilidade, deve | N20: Se o prazo é menor, vc deve pagar menos. | Y20: Se vc paga o mesmo e o prazo | AN20: =+AN19+1 -> 2 | AO20: =AO19 -> 40 | AP20: 1.0816 | AQ20: 36.98224852 | AU20: =+AU19+1 -> 2 | AV20: =AV19 -> 40 | AW20: 1.1025 | AX20: 36.28117914 | BB20: =+BB19+1 -> 2 | BC20: =BC19 -> 40 | BD20: 1.0609 | BE20: 37.70383637 | BI20: 8 | BJ20: 40 | BK20: 1.436988753 | BL20: 27.83598683 | BP20: 8 | BQ20: 40 | BR20: 1.513280407 | BS20: 26.43264249 | BW20: Período | BX20: FC | BY20: Fator Desc. | BZ20: PV | CZ20: 8 | DA20: 1 | DB20: 2.14358881 | DC20: 0.4665073802 | DG20: 8 | DH20: 1.229873865 | DI20: 2.14358881 | DJ20: 0.5737452349 | DN20: 8 | DO20: 14071.00423 | DP20: 1.992562642 | DQ20: 7061.762542 | DX20: TIR | DY20: =IRR(DY8:DY18) -> 0.09116442956 | EA20: Taxa Desc. | EB20: Soma PVs
H21: pagar menos pelo mesmo VF. | Y21: é maior, a rentabilidade será | AN21: 3 | AO21: 40 | AP21: 1.124864 | AQ21: 35.55985435 | AU21: 3 | AV21: 40 | AW21: 1.157625 | AX21: 34.55350394 | BB21: 3 | BC21: 40 | BD21: 1.092727 | BE21: 36.60566637 | BI21: 9 | BJ21: 40 | BK21: 1.503609428 | BL21: 26.6026531 | BP21: 9 | BQ21: 40 | BR21: 1.593710138 | BS21: 25.09866696 | BW21: 0 | BX21: =-BX9 -> -1000 | BY21: =(1+$BX$8)^BW21 -> 1 | BZ21: =BX21/BY21 -> -1000 | CL21: VPL | CM21: =SUM(CM6:CM16) -> 0 | CO21: VPL | CP21: =SUM(CP6:CP16) -> 10.31462899 | CR21: VPL | CS21: =SUM(CS6:CS16) -> -5.347207958 | CU21: VPL | CV21: =SUM(CV6:CV16) -> 23.86686116 | CZ21: 9 | DA21: 1 | DB21: 2.357947691 | DC21: 0.4240976184 | DG21: 9 | DH21: 1.266770081 | DI21: 2.357947691 | DJ21: 0.5372341745 | DN21: 9 | DO21: 14774.55444 | DP21: 2.171893279 | DQ21: 6802.615293 | EA21: =DY20 -> 0.09116442956 | EB21: =SUM(EB8:EB18) -> 0
Y22: menor. | AN22: 4 | AO22: 40 | AP22: 1.16985856 | AQ22: 34.19216764 | AU22: 4 | AV22: 40 | AW22: 1.21550625 | AX22: 32.90809899 | BB22: 4 | BC22: 40 | BD22: 1.12550881 | BE22: 35.53948192 | BI22: 10 | BJ22: =BJ21+BJ4 -> 1040 | BK22: 1.573318724 | BL22: 661.0230872 | BP22: 10 | BQ22: =BQ21+BQ4 -> 1040 | BR22: 1.67841465 | BS22: 619.6323418 | BW22: 1 | BX22: =BX6 -> 20 | BY22: 1.02 | BZ22: 19.60784314 | CL22: ou | CO22: ou | CR22: ou | CU22: ou | CZ22: 10 | DA22: 1 | DB22: 2.59374246 | DC22: 0.3855432894 | DG22: 10 | DH22: 1.304773184 | DI22: 2.59374246 | DJ22: 0.5030465453 | DN22: 10 | DO22: 15513.28216 | DP22: 2.367363675 | DQ22: 6552.978035
AN23: 5 | AO23: 40 | AP23: 1.216652902 | AQ23: 32.87708427 | AU23: 5 | AV23: 40 | AW23: 1.276281563 | AX23: 31.34104666 | BB23: 5 | BC23: 40 | BD23: 1.159274074 | BE23: 34.50435138 | BK23: Soma PVs | BL23: =SUM(BL12:BL22) -> -1.893745775e-06 | BR23: Soma PVs | BS23: =SUM(BS12:BS22) -> -1.591615728e-12 | BW23: =+BW22+1 -> 2 | BX23: =BX22 -> 20 | BY23: 1.0404 | BZ23: 19.22337562 | CL23: VPL | CM23: =NPV(10%,CK7:CK16)+CK6 -> 0 | CO23: VPL | CP23: =NPV(10%,CN7:CN16)+CN6 -> 10.31462899 | CR23: VPL | CS23: =NPV(10%,CQ7:CQ16)+CQ6 -> -5.347207958 | CU23: VPL | CV23: =NPV(10%,CT7:CT16)+CT6 -> 23.86686116 | CZ23: 11 | DA23: 1 | DB23: 2.853116706 | DC23: 0.3504938995 | DG23: 11 | DH23: 1.343916379 | DI23: 2.853116706 | DJ23: 0.4710344924 | DN23: 11 | DO23: 16288.94627 | DP23: 2.580426405 | DQ23: 6312.501777
AN24: 6 | AO24: 40 | AP24: 1.265319018 | AQ24: 31.61258103 | AU24: 6 | AV24: 40 | AW24: 1.340095641 | AX24: 29.84861587 | BB24: 6 | BC24: 40 | BD24: 1.194052297 | BE24: 33.49937027 | BW24: 3 | BX24: 20 | BY24: 1.061208 | BZ24: 18.84644669 | CZ24: 12 | DA24: 1 | DB24: 3.138428377 | DC24: 0.3186308177 | DG24: 12 | DH24: 1.384233871 | DI24: 3.138428377 | DJ24: 0.4410595701 | DN24: 12 | DO24: 17103.39358 | DP24: 2.812664782 | DQ24: 6080.850335
AN25: 7 | AO25: 40 | AP25: 1.315931779 | AQ25: 30.39671253 | AU25: 7 | AV25: 40 | AW25: 1.407100423 | AX25: 28.42725321 | BB25: 7 | BC25: 40 | BD25: 1.229873865 | BE25: 32.52366045 | BI25: Usar Atingir Meta (Goal Seek) | BP25: Usar Atingir Meta (Goal Seek) | BW25: 4 | BX25: 20 | BY25: 1.08243216 | BZ25: 18.47690852 | CK25: =SUM(CM6:CM16) -> 0 | CL25: TIR | CM25: 0.1 | CN25: =SUM(CP6:CP16) -> 10.31462899 | CO25: TIR | CP25: 0.1133358387 | CQ25: =SUM(CS6:CS16) -> -5.347207958 | CR25: TIR | CS25: 0.08570045041 | CT25: =SUM(CV6:CV16) -> 23.86686116 | CU25: TIR | CV25: 0.1305983922 | CZ25: 13 | DA25: 1 | DB25: 3.452271214 | DC25: 0.2896643797 | DG25: 13 | DH25: 1.425760887 | DI25: 3.452271214 | DJ25: 0.4129921429 | DN25: 13 | DO25: 17958.56326 | DP25: 3.065804612 | DQ25: 5857.699864
AN26: 8 | AO26: 40 | AP26: 1.36856905 | AQ26: 29.2276082 | AU26: 8 | AV26: 40 | AW26: 1.477455444 | AX26: 27.07357448 | BB26: 8 | BC26: 40 | BD26: 1.266770081 | BE26: 31.57636937 | BI26: (Dados/Teste de Hipóteses/Atingir Meta) | BP26: (Dados/Teste de Hipóteses/Atingir Meta) | BW26: 5 | BX26: 20 | BY26: 1.104080803 | BZ26: 18.1146162 | CL26: ou | CO26: ou | CR26: ou | CU26: ou | CZ26: 14 | DA26: 1 | DB26: 3.797498336 | DC26: 0.2633312543 | DG26: 14 | DH26: 1.468533713 | DI26: 3.797498336 | DJ26: 0.3867108248 | DN26: 14 | DO26: 18856.49142 | DP26: 3.341727027 | DQ26: 5642.738401
AN27: 9 | AO27: 40 | AP27: 1.423311812 | AQ27: 28.10346942 | AU27: 9 | AV27: 40 | AW27: 1.551328216 | AX27: 25.78435665 | BB27: 9 | BC27: 40 | BD27: 1.304773184 | BE27: 30.65666929 | BI27: => Soma PVs = 0 , mudando r. | BP27: => Soma PVs = 0 , mudando r. | BW27: 6 | BX27: 20 | BY27: 1.126162419 | BZ27: 17.75942764 | CL27: TIR | CM27: =IRR(CK6:CK16) -> 0.1 | CO27: TIR | CP27: =IRR(CN6:CN16) -> 0.1133369249 | CR27: TIR | CS27: =IRR(CQ6:CQ16) -> 0.08570045041 | CU27: TIR | CV27: =IRR(CT6:CT16) -> 0.1305996236 | CZ27: 15 | DA27: 1 | DB27: 4.177248169 | DC27: 0.2393920494 | DG27: 15 | DH27: 1.512589725 | DI27: 4.177248169 | DJ27: 0.3621019541 | DN27: 15 | DO27: 19799.31599 | DP27: 3.64248246 | DQ27: 5435.665432
AN28: 10 | AO28: =AO27+AO4 -> 1040 | AP28: 1.480244285 | AQ28: 702.5867356 | AU28: 10 | AV28: =AV27+AV4 -> 1040 | AW28: 1.628894627 | AX28: 638.4697837 | BB28: 10 | BC28: =BC27+BC4 -> 1040 | BD28: 1.343916379 | BE28: 773.8576715 | BW28: 7 | BX28: 20 | BY28: 1.148685668 | BZ28: 17.41120357 | CZ28: 16 | DA28: 1 | DB28: 4.594972986 | DC28: 0.2176291358 | DG28: 16 | DH28: 1.557967417 | DI28: 4.594972986 | DJ28: 0.3390591025 | DN28: 16 | DO28: 20789.28179 | DP28: 3.970305881 | DQ28: 5236.191472
BI29: 2) Taxa Interna de Retorno | BL29: =IRR(BJ12:BJ22) -> 0.04636130543 | BP29: 2) Taxa Interna de Retorno | BS29: =IRR(BQ12:BQ22) -> 0.05314925812 | BW29: 8 | BX29: 20 | BY29: 1.171659381 | BZ29: 17.06980742 | CZ29: 17 | DA29: 1 | DB29: 5.054470285 | DC29: 0.1978446689 | DG29: 17 | DH29: 1.604706439 | DI29: 5.054470285 | DJ29: 0.3174826141 | DN29: 17 | DO29: 21828.74588 | DP29: 4.32763341 | DQ29: 5044.037656
BW30: 9 | BX30: 20 | BY30: 1.195092569 | BZ30: 16.73510532 | CZ30: 18 | DA30: 1 | DB30: 5.559917313 | DC30: 0.1798587899 | DG30: 18 | DH30: 1.652847632 | DI30: 5.559917313 | DJ30: 0.297279175 | DN30: 18 | DO30: 22920.18318 | DP30: 4.717120417 | DQ30: 4858.935357
BW31: 10 | BX31: 20 | BY31: 1.21899442 | BZ31: 16.406966 | CZ31: 19 | DA31: 1 | DB31: 6.115909045 | DC31: 0.1635079908 | DG31: 19 | DH31: 1.702433061 | DI31: 6.115909045 | DJ31: 0.2783614094 | DN31: 19 | DO31: 24066.19234 | DP31: 5.141661255 | DQ31: 4680.625802
BW32: 11 | BX32: 20 | BY32: 1.243374308 | BZ32: 16.08526078 | CZ32: 20 | DA32: 1 | DB32: 6.727499949 | DC32: 0.148643628 | DG32: 20 | DH32: 1.753506053 | DI32: 6.727499949 | DJ32: 0.2606475015 | DN32: 20 | DO32: 25269.50195 | DP32: 5.604410768 | DQ32: 4508.859718
BW33: 12 | BX33: 20 | BY33: 1.268241795 | BZ33: 15.76986351 | CZ33: 21 | DA33: 1 | DB33: 7.400249944 | DC33: 0.1351305709 | DG33: 21 | DH33: 1.806111235 | DI33: 7.400249944 | DJ33: 0.2440608423 | DN33: 21 | DO33: 26532.97705 | DP33: 6.108807737 | DQ33: 4343.396976
BW34: 13 | BX34: 20 | BY34: 1.29360663 | BZ34: 15.4606505 | CZ34: 22 | DA34: 1 | DB34: 8.140274939 | DC34: 0.1228459736 | DG34: 22 | DH34: 1.860294572 | DI34: 8.140274939 | DJ34: 0.2285296978 | DN34: 22 | DO34: 27859.6259 | DP34: 6.658600433 | DQ34: 4184.006261
BW35: 14 | BX35: 20 | BY35: 1.319478763 | BZ35: 15.15750049 | CZ35: 23 | DA35: 1 | DB35: 8.954302433 | DC35: 0.1116781578 | DG35: 23 | DH35: 1.916103409 | DI35: 8.954302433 | DJ35: 0.2139868988 | DN35: 23 | DO35: 29252.6072 | DP35: 7.257874472 | DQ35: 4030.464747
BW36: 15 | BX36: 20 | BY36: 1.345868338 | BZ36: 14.8602946 | CZ36: 24 | DA36: 1 | DB36: 9.849732676 | DC36: 0.101525598 | DG36: 24 | DH36: 1.973586511 | DI36: 9.849732676 | DJ36: 0.2003695507 | DN36: 24 | DO36: 30715.23756 | DP36: 7.911083175 | DQ36: 3882.557784
BW37: 16 | BX37: 20 | BY37: 1.372785705 | BZ37: 14.56891627 | CZ37: 25 | DA37: 1 | DB37: 10.83470594 | DC37: 0.09229599818 | DG37: 25 | DH37: 2.032794106 | DI37: 10.83470594 | DJ37: 0.1876187611 | DN37: 25 | DO37: 32250.99944 | DP37: 8.62308066 | DQ37: 3740.078599
BW38: 17 | BX38: 20 | BY38: 1.400241419 | BZ38: 14.28325125 | CZ38: 26 | DA38: 1 | DB38: 11.91817654 | DC38: 0.08390545289 | DG38: 26 | DH38: 2.09377793 | DI38: 11.91817654 | DJ38: 0.1756793854 | DN38: 26 | DO38: 33863.54941 | DP38: 9.39915792 | DQ38: 3602.828008 | DX38: TIR | DY38: =IRR(DY26:DY36) ->  | EA38: Taxa Desc. | EB38: Soma PVs
BW39: 18 | BX39: 20 | BY39: 1.428246248 | BZ39: 14.0031875 | CZ39: 27 | DA39: 1 | DB39: 13.10999419 | DC39: 0.07627768444 | DG39: 27 | DH39: 2.156591268 | DI39: 13.10999419 | DJ39: 0.1644997882 | DN39: 27 | DO39: 35556.72688 | DP39: 10.24508213 | DQ39: 3470.614137 | EA39: =DY38 ->  | EB39: =SUM(EB26:EB36) -> 0
BW40: 19 | BX40: 20 | BY40: 1.456811173 | BZ40: 13.7286152 | CZ40: 28 | DA40: 1 | DB40: 14.42099361 | DC40: 0.06934334949 | DG40: 28 | DH40: 2.221289006 | DI40: 14.42099361 | DJ40: 0.1540316198 | DN40: 28 | DO40: 37334.56322 | DP40: 11.16713952 | DQ40: 3343.25215
BW41: 20 | BX41: =BX40+BX4 -> 1020 | BY41: 1.485947396 | BZ41: 686.4307598 | CZ41: 29 | DA41: 1 | DB41: 15.86309297 | DC41: 0.06303940863 | DG41: 29 | DH41: 2.287927676 | DI41: 15.86309297 | DJ41: 0.1442296077 | DN41: 29 | DO41: 39201.29138 | DP41: 12.17218208 | DQ41: 3220.563998
BY42: Soma PVs | BZ42: =SUM(BZ21:BZ41) -> 0 | CZ42: 30 | DA42: 1 | DB42: 17.44940227 | DC42: 0.0573085533 | DG42: 30 | DH42: 2.356565506 | DI42: 17.44940227 | DJ42: 0.1350513599 | DN42: 30 | DO42: 41161.35595 | DP42: 13.26767847 | DQ42: 3102.378163
CZ43: 31 | DA43: 1 | DB43: 19.1943425 | DC43: 0.05209868482 | DG43: 31 | DH43: 2.427262471 | DI43: 19.1943425 | DJ43: 0.1264571825 | DN43: 31 | DO43: 43219.42375 | DP43: 14.46176953 | DQ43: 2988.529423
CZ44: 32 | DA44: 1 | DB44: 21.11377675 | DC44: 0.04736244074 | DG44: 32 | DH44: 2.500080345 | DI44: 21.11377675 | DJ44: 0.1184099072 | DN44: 32 | DO44: 45380.39494 | DP44: 15.76332879 | DQ44: 2878.858618
CZ45: 33 | DA45: 1 | DB45: =(1+$DB$6)^CZ45 -> 23.22515442 | DC45: =DA45/DB45 -> 0.04305676431 | DG45: 33 | DH45: 2.575082756 | DI45: 23.22515442 | DJ45: 0.1108747313 | DN45: 33 | DO45: 47649.41469 | DP45: 17.18202838 | DQ45: 2773.212431
CZ46: 34 | DA46: =DA45 -> 1 | DB46: 25.54766986 | DC46: 0.03914251301 | DG46: 34 | DH46: 2.652335238 | DI46: 25.54766986 | DJ46: 0.1038190666 | DN46: 34 | DO46: 50031.88542 | DP46: 18.72841093 | DQ46: 2671.443167
CZ47: 35 | DA47: 1 | DB47: 28.10243685 | DC47: 0.03558410274 | DG47: 35 | DH47: 2.731905296 | DI47: 28.10243685 | DJ47: 0.09721239871 | DN47: 35 | DO47: 52533.47969 | DP47: 20.41396792 | DQ47: 2573.408555
CZ48: 36 | DA48: 1 | DB48: 30.91268053 | DC48: 0.03234918431 | DG48: 36 | DH48: 2.813862454 | DI48: 30.91268053 | DJ48: 0.09102615515 | DN48: 36 | DO48: 55160.15368 | DP48: 22.25122503 | DQ48: 2478.971544
CZ49: 37 | DA49: 1 | DB49: 34.00394859 | DC49: 0.02940834937 | DG49: 37 | DH49: 2.898278328 | DI49: 34.00394859 | DJ49: 0.08523358164 | DN49: 37 | DO49: 57918.16136 | DP49: 24.25383528 | DQ49: 2388.000111
CZ50: 38 | DA50: 1 | DB50: 37.40434344 | DC50: 0.02673486306 | DG50: 38 | DH50: 2.985226678 | DI50: 37.40434344 | DJ50: 0.07980962645 | DN50: 38 | DO50: 60814.06943 | DP50: 26.43668046 | DQ50: 2300.36708
CZ51: 39 | DA51: 1 | DB51: 41.14477779 | DC51: 0.02430442097 | DG51: 39 | DH51: 3.074783478 | DI51: 41.14477779 | DJ51: 0.07473083204 | DN51: 39 | DO51: 63854.7729 | DP51: 28.8159817 | DQ51: 2215.949939
CZ52: 40 | DA52: 1 | DB52: 45.25925557 | DC52: 0.02209492815 | DG52: 40 | DH52: 3.167026983 | DI52: 45.25925557 | DJ52: 0.06997523363 | DN52: 40 | DO52: 67047.51154 | DP52: 31.40942005 | DQ52: 2134.630675
CZ53: 41 | DA53: 1 | DB53: 49.78518112 | DC53: 0.02008629832 | DG53: 41 | DH53: 3.262037792 | DI53: 49.78518112 | DJ53: 0.06552226422 | DN53: 41 | DO53: 70399.88712 | DP53: 34.23626786 | DQ53: 2056.295605
CZ54: 42 | DA54: 1 | DB54: 54.76369924 | DC54: 0.0182602712 | DG54: 42 | DH54: 3.359898926 | DI54: 54.76369924 | DJ54: 0.06135266559 | DN54: 42 | DO54: 73919.88148 | DP54: 37.31753197 | DQ54: 1980.835216
CZ55: 43 | DA55: 1 | DB55: 60.24006916 | DC55: 0.01660024655 | DG55: 43 | DH55: 3.460695894 | DI55: 60.24006916 | DJ55: 0.05744840505 | DN55: 43 | DO55: 77615.87555 | DP55: 40.67610984 | DQ55: 1908.144015
CZ56: 44 | DA56: 1 | DB56: 66.26407608 | DC56: 0.01509113322 | DG56: 44 | DH56: 3.56451677 | DI56: 66.26407608 | DJ56: 0.05379259746 | DN56: 44 | DO56: 81496.66933 | DP56: 44.33695973 | DQ56: 1838.120381
CZ57: 45 | DA57: 1 | DB57: 72.89048369 | DC57: 0.01371921202 | DG57: 45 | DH57: 3.671452273 | DI57: 72.89048369 | DJ57: 0.05036943216 | DN57: 45 | DO57: 85571.5028 | DP57: 48.3272861 | DQ57: 1770.666422
CZ58: 46 | DA58: 1 | DB58: 80.17953205 | DC58: 0.01247201093 | DG58: 46 | DH58: 3.781595842 | DI58: 80.17953205 | DJ58: 0.04716410466 | DN58: 46 | DO58: 89850.07793 | DP58: 52.67674185 | DQ58: 1705.687838
CZ59: 47 | DA59: 1 | DB59: 88.19748526 | DC59: 0.01133819175 | DG59: 47 | DH59: 3.895043717 | DI59: 88.19748526 | DJ59: 0.04416275255 | DN59: 47 | DO59: 94342.58183 | DP59: 57.41764862 | DQ59: 1643.093789
CZ60: 48 | DA60: 1 | DB60: 97.01723378 | DC60: 0.01030744705 | DG60: 48 | DH60: 4.011895028 | DI60: 97.01723378 | DJ60: 0.04135239557 | DN60: 48 | DO60: 99059.71092 | DP60: 62.585237 | DQ60: 1582.796769
CZ61: 49 | DA61: 1 | DB61: 106.7189572 | DC61: 0.009370406407 | DG61: 49 | DH61: 4.132251879 | DI61: 106.7189572 | DJ61: 0.03872087949 | DN61: 49 | DO61: 104012.6965 | DP61: 68.21790833 | DQ61: 1524.712484
CZ62: 50 | DA62: 1 | DB62: 117.3908529 | DC62: 0.00851855128 | DG62: 50 | DH62: 4.256219436 | DI62: 117.3908529 | DJ62: 0.03625682352 | DN62: 50 | DO62: 109213.3313 | DP62: 74.35752008 | DQ62: 1468.759732
CZ63: 51 | DA63: 1 | DB63: 129.1299382 | DC63: 0.007744137527 | DG63: 51 | DH63: 4.383906019 | DI63: 129.1299382 | DJ63: 0.03394957111 | DN63: 51 | DO63: 114673.9979 | DP63: 81.04969688 | DQ63: 1414.860293
CZ64: 52 | DA64: 1 | DB64: 142.042932 | DC64: 0.007040125024 | DG64: 52 | DH64: 4.515423199 | DI64: 142.042932 | DJ64: 0.03178914386 | DN64: 52 | DO64: 120407.6978 | DP64: 88.3441696 | DQ64: 1362.938814
CZ65: 53 | DA65: 1 | DB65: 156.2472252 | DC65: 0.006400113659 | DG65: 53 | DH65: 4.650885895 | DI65: 156.2472252 | DJ65: 0.02976619834 | DN65: 53 | DO65: 126428.0826 | DP65: 96.29514487 | DQ65: 1312.922711
CZ66: 54 | DA66: 1 | DB66: 171.8719477 | DC66: 0.005818285144 | DG66: 54 | DH66: 4.790412472 | DI66: 171.8719477 | DJ66: 0.02787198572 | DN66: 54 | DO66: 132749.4868 | DP66: 104.9617079 | DQ66: 1264.742061
CZ67: 55 | DA67: 1 | DB67: 189.0591425 | DC67: 0.005289350131 | DG67: 55 | DH67: 4.934124846 | DI67: 189.0591425 | DJ67: 0.0260983139 | DN67: 55 | DO67: 139386.9611 | DP67: 114.4082616 | DQ67: 1218.329508
CZ68: 56 | DA68: 1 | DB68: 207.9650567 | DC68: 0.004808500119 | DG68: 56 | DH68: 5.082148592 | DI68: 207.9650567 | DJ68: 0.02443751211 | DN68: 56 | DO68: 146356.3092 | DP68: 124.7050052 | DQ68: 1173.620168
CZ69: 57 | DA69: 1 | DB69: 228.7615624 | DC69: 0.004371363745 | DG69: 57 | DH69: 5.234613049 | DI69: 228.7615624 | DJ69: 0.0228823977 | DN69: 57 | DO69: 153674.1246 | DP69: 135.9284556 | DQ69: 1130.551538
CZ70: 58 | DA70: 1 | DB70: 251.6377186 | DC70: 0.003973967041 | DG70: 58 | DH70: 5.391651441 | DI70: 251.6377186 | DJ70: 0.02142624512 | DN70: 58 | DO70: 161357.8309 | DP70: 148.1620166 | DQ70: 1089.063409
CZ71: 59 | DA71: 1 | DB71: 276.8014905 | DC71: 0.00361269731 | DG71: 59 | DH71: 5.553400984 | DI71: 276.8014905 | DJ71: 0.02006275679 | DN71: 59 | DO71: 169425.7224 | DP71: 161.4965981 | DQ71: 1049.097779
CZ72: 60 | DA72: 1 | DB72: 304.4816395 | DC72: 0.003284270281 | DG72: 60 | DH72: 5.720003014 | DI72: 304.4816395 | DJ72: 0.01878603591 | DN72: 60 | DO72: 177897.0085 | DP72: 176.031292 | DQ72: 1010.598778
CZ73: 61 | DA73: 1 | DB73: 334.9298035 | DC73: 0.002985700256 | DG73: 61 | DH73: 5.891603104 | DI73: 334.9298035 | DJ73: 0.0175905609 | DN73: 61 | DO73: 186791.8589 | DP73: 191.8741082 | DQ73: 973.5125842
CZ74: 62 | DA74: 1 | DB74: 368.4227838 | DC74: 0.00271427296 | DG74: 62 | DH74: 6.068351197 | DI74: 368.4227838 | DJ74: 0.01647116157 | DN74: 62 | DO74: 196131.4519 | DP74: 209.142778 | DQ74: 937.7873517
CZ75: 63 | DA75: 1 | DB75: 405.2650622 | DC75: 0.002467520873 | DG75: 63 | DH75: 6.250401733 | DI75: 405.2650622 | DJ75: 0.01542299674 | DN75: 63 | DO75: 205938.0245 | DP75: 227.965628 | DQ75: 903.373137
CZ76: 64 | DA76: 1 | DB76: 445.7915685 | DC76: 0.002243200793 | DG76: 64 | DH76: 6.437913785 | DI76: 445.7915685 | DJ76: 0.01444153331 | DN76: 64 | DO76: 216234.9257 | DP76: 248.4825345 | DQ76: 870.2218292
CZ77: 65 | DA77: 1 | DB77: =(1+$DB$6)^CZ77 -> 490.3707253 | DC77: =DA77/DB77 -> 0.002039273448 | DG77: 65 | DH77: 6.631051199 | DI77: =(1+$DI$6)^DG77 -> 490.3707253 | DJ77: =DH77/DI77 -> 0.01352252664 | DN77: 65 | DO77: 227046.672 | DP77: =(1+$DQ$9)^DN77 -> 270.8459626 | DQ77: =DO77/DP77 -> 838.2870832
CZ78: 66 | DA78: =DA77 -> 1 | DB78: 539.4077978 | DC78: 0.001853884953 | DG78: 66 | DH78: =DH77*(1+$DI$7) -> 6.829982735 | DI78: 539.4077978 | DJ78: 0.01266200222 | DN78: 66 | DO78: =DO77*(1+$DO$5) -> 238399.0056 | DP78: 295.2220993 | DQ78: 807.5242544
CZ79: 67 | DA79: 1 | DB79: 593.3485776 | DC79: 0.001685349957 | DG79: 67 | DH79: 7.034882217 | DI79: 593.3485776 | DJ79: 0.01185623844 | DN79: 67 | DO79: 250318.9559 | DP79: 321.7920882 | DQ79: 777.8903368
CZ80: 68 | DA80: 1 | DB80: 652.6834354 | DC80: 0.001532136325 | DG80: 68 | DH80: 7.245928683 | DI80: 652.6834354 | DJ80: 0.01110175054 | DN80: 68 | DO80: 262834.9037 | DP80: 350.7533761 | DQ80: 749.3439024
CZ81: 69 | DA81: 1 | DB81: 717.9517789 | DC81: 0.001392851204 | DG81: 69 | DH81: 7.463306544 | DI81: 717.9517789 | DJ81: 0.01039527551 | DN81: 69 | DO81: 275976.6488 | DP81: 382.32118 | DQ81: 721.8450436
CZ82: 70 | DA82: 1 | DB82: 789.7469568 | DC82: 0.001266228368 | DG82: 70 | DH82: 7.68720574 | DI82: 789.7469568 | DJ82: 0.009733757976 | DN82: 70 | DO82: 289775.4813 | DP82: 416.7300862 | DQ82: 695.3553173
CZ83: 71 | DA83: 1 | DB83: 868.7216525 | DC83: 0.001151116698 | DG83: 71 | DH83: 7.917821912 | DI83: 868.7216525 | DJ83: 0.009114337014 | DN83: 71 | DO83: 304264.2554 | DP83: 454.2357939 | DQ83: 669.8376909
CZ84: 72 | DA84: 1 | DB84: 955.5938177 | DC84: 0.001046469725 | DG84: 72 | DH84: 8.155356569 | DI84: 955.5938177 | DJ84: 0.00853433375 | DN84: 72 | DO84: 319477.4681 | DP84: 495.1170154 | DQ84: 645.2564913
CZ85: 73 | DA85: 1 | DB85: 1051.1532 | DC85: 0.000951336114 | DG85: 73 | DH85: 8.400017267 | DI85: 1051.1532 | DJ85: 0.007991239784 | DN85: 73 | DO85: 335451.3415 | DP85: 539.6775468 | DQ85: 621.577354
CZ86: 74 | DA86: 1 | DB86: 1156.268519 | DC86: 0.0008648510127 | DG86: 74 | DH86: 8.652017785 | DI86: 1156.268519 | DJ86: 0.007482706343 | DN86: 74 | DO86: 352223.9086 | DP86: 588.248526 | DQ86: 598.7671759
CZ87: 75 | DA87: 1 | DB87: 1271.895371 | DC87: 0.0007862281934 | DG87: 75 | DH87: 8.911578318 | DI87: 1271.895371 | DJ87: 0.007006534121 | DN87: 75 | DO87: 369835.104 | DP87: 641.1908933 | DQ87: 576.7940685
CZ88: 76 | DA88: 1 | DB88: 1399.084909 | DC88: 0.0007147529031 | DG88: 76 | DH88: 9.178925668 | DI88: 1399.084909 | DJ88: 0.006560663768 | DN88: 76 | DO88: 388326.8592 | DP88: 698.8980737 | DQ88: 555.6273137
CZ89: 77 | DA89: 1 | DB89: 1538.993399 | DC89: 0.0006497753664 | DG89: 77 | DH89: 9.454293438 | DI89: 1538.993399 | DJ89: 0.006143166983 | DN89: 77 | DO89: 407743.2022 | DP89: 761.7989004 | DQ89: 535.2373205
CZ90: 78 | DA90: 1 | DB90: 1692.892739 | DC90: 0.0005907048786 | DG90: 78 | DH90: 9.737922241 | DI90: 1692.892739 | DJ90: 0.005752238175 | DN90: 78 | DO90: 428130.3623 | DP90: 830.3608014 | DQ90: 515.595584
CZ91: 79 | DA91: 1 | DB91: 1862.182013 | DC91: 0.0005370044351 | DG91: 79 | DH91: 10.03005991 | DI91: 1862.182013 | DJ91: 0.005386186654 | DN91: 79 | DO91: 449536.8804 | DP91: 905.0932735 | DQ91: 496.6746451
CZ92: 80 | DA92: 1 | DB92: 2048.400215 | DC92: 0.00048818585 | DG92: 80 | DH92: 10.33096171 | DI92: 2048.400215 | DJ92: 0.005043429322 | DN92: 80 | DO92: 472013.7244 | DP92: 986.5516681 | DQ92: 478.4480526
CZ93: 81 | DA93: 1 | DB93: 2253.240236 | DC93: 0.0004438053182 | DG93: 81 | DH93: 10.64089056 | DI93: 2253.240236 | DJ93: 0.00472248382 | DN93: 81 | DO93: 495614.4107 | DP93: 1075.341318 | DQ93: 460.8903259
CZ94: 82 | DA94: 1 | DB94: 2478.56426 | DC94: 0.0004034593802 | DG94: 82 | DH94: 10.96011727 | DI94: 2478.56426 | DJ94: 0.004421962122 | DN94: 82 | DO94: 520395.1312 | DP94: 1172.122037 | DQ94: 443.9769195
CZ95: 83 | DA95: 1 | DB95: 2726.420686 | DC95: 0.0003667812547 | DG95: 83 | DH95: 11.28892079 | DI95: 2726.420686 | DJ95: 0.004140564532 | DN95: 83 | DO95: 546414.8878 | DP95: 1277.61302 | DQ95: 427.6841885
CZ96: 84 | DA96: 1 | DB96: 2999.062754 | DC96: 0.0003334375043 | DG96: 84 | DH96: 11.62758842 | DI96: 2999.062754 | DJ96: 0.003877074062 | DN96: 84 | DO96: 573735.6322 | DP96: 1392.598192 | DQ96: 411.9893559
CZ97: 85 | DA97: 1 | DB97: 3298.96903 | DC97: 0.0003031250039 | DG97: 85 | DH97: 11.97641607 | DI97: 3298.96903 | DJ97: 0.003630351167 | DN97: 85 | DO97: 602422.4138 | DP97: 1517.932029 | DQ97: 396.8704804
CZ98: 86 | DA98: 1 | DB98: 3628.865933 | DC98: 0.0002755681854 | DG98: 86 | DH98: 12.33570855 | DI98: 3628.865933 | DJ98: 0.00339932882 | DN98: 86 | DO98: 632543.5344 | DP98: 1654.545912 | DQ98: 382.3064261
CZ99: 87 | DA99: 1 | DB99: 3991.752526 | DC99: 0.0002505165322 | DG99: 87 | DH99: 12.70577981 | DI99: 3991.752526 | DJ99: 0.003183007895 | DN99: 87 | DO99: 664170.7112 | DP99: 1803.455044 | DQ99: 368.2768325
CZ100: 88 | DA100: 1 | DB100: 4390.927778 | DC100: 0.000227742302 | DG100: 88 | DH100: 13.0869532 | DI100: 4390.927778 | DJ100: 0.002980452847 | DN100: 88 | DO100: 697379.2467 | DP100: 1965.765998 | DQ100: 354.7620863
CZ101: 89 | DA101: 1 | DB101: 4830.020556 | DC101: 0.0002070384563 | DG101: 89 | DH101: 13.4795618 | DI101: 4830.020556 | DJ101: 0.002790787666 | DN101: 89 | DO101: 732248.2091 | DP101: 2142.684938 | DQ101: 341.7432942
CZ102: 90 | DA102: 1 | DB102: 5313.022612 | DC102: 0.0001882167785 | DG102: 90 | DH102: 13.88394865 | DI102: 5313.022612 | DJ102: 0.002613192088 | DN102: 90 | DO102: 768860.6195 | DP102: 2335.526582 | DQ102: 329.2022559
CZ103: 91 | DA103: 1 | DB103: 5844.324873 | DC103: 0.0001711061623 | DG103: 91 | DH103: 14.30046711 | DI103: 5844.324873 | DJ103: 0.002446898046 | DN103: 91 | DO103: 807303.6505 | DP103: 2545.723975 | DQ103: 317.1214391
CZ104: 92 | DA104: 1 | DB104: 6428.75736 | DC104: 0.0001555510566 | DG104: 92 | DH104: 14.72948112 | DI104: 6428.75736 | DJ104: 0.002291186352 | DN104: 92 | DO104: 847668.833 | DP104: 2774.839132 | DQ104: 305.4839551
CZ105: 93 | DA105: 1 | DB105: 7071.633096 | DC105: 0.0001414100515 | DG105: 93 | DH105: 15.17136556 | DI105: 7071.633096 | DJ105: 0.002145383584 | DN105: 93 | DO105: 890052.2747 | DP105: 3024.574654 | DQ105: 294.2735348
CZ106: 94 | DA106: 1 | DB106: 7778.796406 | DC106: 0.0001285545922 | DG106: 94 | DH106: 15.62650652 | DI106: 7778.796406 | DJ106: 0.002008859174 | DN106: 94 | DO106: 934554.8884 | DP106: 3296.786373 | DQ106: 283.474506
CZ107: 95 | DA107: 1 | DB107: 8556.676047 | DC107: 0.0001168678111 | DG107: 95 | DH107: 16.09530172 | DI107: 8556.676047 | DJ107: 0.001881022681 | DN107: 95 | DO107: 981282.6328 | DP107: 3593.497147 | DQ107: 273.0717718
CZ108: 96 | DA108: 1 | DB108: 9412.343651 | DC108: 0.0001062434647 | DG108: 96 | DH108: 16.57816077 | DI108: 9412.343651 | DJ108: 0.001761321238 | DN108: 96 | DO108: 1030346.764 | DP108: 3916.91189 | DQ108: 263.0507893
CZ109: 97 | DA109: 1 | DB109: 10353.57802 | DC109: =DA109/DB109 -> 9.658496786e-05 | DG109: 97 | DH109: 17.07550559 | DI109: 10353.57802 | DJ109: 0.001649237159 | DN109: 97 | DO109: 1081864.103 | DP109: 4269.43396 | DQ109: 253.3975494
CZ110: 98 | DA110: 1 | DB110: 11388.93582 | DC110: 8.780451624e-05 | DG110: 98 | DH110: 17.58777076 | DI110: 11388.93582 | DJ110: 0.001544285703 | DN110: 98 | DO110: 1135957.308 | DP110: 4653.683016 | DQ110: 244.0985567
CZ111: 99 | DA111: 1 | DB111: 12527.8294 | DC111: 7.982228749e-05 | DG111: 99 | DH111: 18.11540388 | DI111: 12527.8294 | DJ111: 0.001446012977 | DN111: 99 | DO111: 1192755.173 | DP111: 5072.514488 | DQ111: 235.1408115
CZ112: 100 | DA112: 1 | DB112: 13780.61234 | DC112: 7.25657159e-05 | DG112: 100 | DH112: 18.658866 | DI112: 13780.61234 | DJ112: 0.001353993969 | DN112: 100 | DO112: 1252392.932 | DP112: 5529.040792 | DQ112: 226.5117909
DG113: 101 | DH113: 19.21863198 | DI113: 15158.67357 | DJ113: 0.001267830717 | DN113: 101 | DO113: 1315012.578 | DP113: 6026.654463 | DQ113: 218.1994316
DG114: 102 | DH114: 19.79519094 | DI114: 16674.54093 | DJ114: 0.00118715058 | DN114: 102 | DO114: 1380763.207 | DP114: 6569.053365 | DQ114: 210.192113
DG115: 103 | DH115: 20.38904667 | DI115: 18341.99502 | DJ115: 0.001111604634 | DN115: 103 | DO115: 1449801.368 | DP115: 7160.268168 | DQ115: 202.478641
DG116: 104 | DH116: 21.00071807 | DI116: 20176.19453 | DJ116: 0.001040866157 | DN116: 104 | DO116: 1522291.436 | DP116: 7804.692303 | DQ116: 195.0482322
DG117: 105 | DH117: 21.63073961 | DI117: 22193.81398 | DJ117: 0.0009746292201 | DN117: 105 | DO117: 1598406.008 | DP117: 8507.11461 | DQ117: 187.8904989
DG118: 106 | DH118: 22.2796618 | DI118: 24413.19538 | DJ118: 0.0009126073607 | DN118: 106 | DO118: 1678326.308 | DP118: 9272.754925 | DQ118: 180.9954347
DG119: 107 | DH119: 22.94805165 | DI119: 26854.51492 | DJ119: 0.0008545323468 | DN119: 107 | DO119: 1762242.624 | DP119: 10107.30287 | DQ119: 174.3534004
DG120: 108 | DH120: 23.6364932 | DI120: 29539.96641 | DJ120: 0.0008001530157 | DN120: 108 | DO120: 1850354.755 | DP120: 11016.96013 | DQ120: 167.9551105
DG121: 109 | DH121: 24.345588 | DI121: 32493.96305 | DJ121: 0.0007492341874 | DN121: 109 | DO121: 1942872.493 | DP121: 12008.48654 | DQ121: 161.7916202
DG122: 110 | DH122: 25.07595564 | DI122: 35743.35935 | DJ122: 0.0007015556482 | DN122: 110 | DO122: 2040016.117 | DP122: 13089.25033 | DQ122: 155.854313
DG123: 111 | DH123: 25.82823431 | DI123: 39317.69529 | DJ123: 0.0006569111978 | DN123: 111 | DO123: 2142016.923 | DP123: 14267.28286 | DQ123: 150.1348887
DG124: 112 | DH124: 26.60308134 | DI124: 43249.46482 | DJ124: 0.000615107758 | DN124: 112 | DO124: 2249117.769 | DP124: 15551.33831 | DQ124: 144.6253515
DG125: 113 | DH125: 27.40117378 | DI125: 47574.4113 | DJ125: 0.000575964537 | DN125: 113 | DO125: 2361573.658 | DP125: 16950.95876 | DQ125: 139.3179991
DG126: 114 | DH126: 28.22320899 | DI126: 52331.85243 | DJ126: 0.0005393122483 | DN126: 114 | DO126: 2479652.341 | DP126: 18476.54505 | DQ126: 134.205412
DG127: 115 | DH127: 29.06990526 | DI127: 57565.03767 | DJ127: 0.000504992378 | DN127: 115 | DO127: 2603634.958 | DP127: 20139.4341 | DQ127: 129.2804428
DG128: 116 | DH128: 29.94200242 | DI128: 63321.54144 | DJ128: 0.0004728564994 | DN128: 116 | DO128: 2733816.706 | DP128: 21951.98317 | DQ128: 124.5362063
DG129: 117 | DH129: 30.84026249 | DI129: 69653.69558 | DJ129: 0.0004427656312 | DN129: 117 | DO129: 2870507.541 | DP129: 23927.66166 | DQ129: 119.9660703
DG130: 118 | DH130: 31.76547037 | DI130: 76619.06514 | DJ130: 0.0004145896365 | DN130: 118 | DO130: 3014032.918 | DP130: 26081.15121 | DQ130: 115.5636457
DG131: 119 | DH131: 32.71843448 | DI131: 84280.97165 | DJ131: 0.0003882066596 | DN131: 119 | DO131: 3164734.564 | DP131: 28428.45482 | DQ131: 111.322778
DG132: 120 | DH132: 33.69998751 | DI132: 92709.06882 | DJ132: 0.0003635025995 | DN132: 120 | DO132: 3322971.292 | DP132: 30987.01575 | DQ132: 107.2375384
DG133: 121 | DH133: 34.71098714 | DI133: 101979.9757 | DJ133: 0.0003403706159 | DN133: 121 | DO133: 3489119.857 | DP133: 33775.84717 | DQ133: 103.3022159
DG134: 122 | DH134: 35.75231675 | DI134: 112177.9733 | DJ134: 0.0003187106676 | DN134: 122 | DO134: 3663575.85 | DP134: 36815.67341 | DQ134: 99.51130891
DG135: 123 | DH135: 36.82488625 | DI135: 123395.7706 | DJ135: 0.0002984290797 | DN135: 123 | DO135: 3846754.642 | DP135: 40129.08402 | DQ135: 95.85951776
DG136: 124 | DH136: 37.92963284 | DI136: 135735.3477 | DJ136: 0.0002794381382 | DN136: 124 | DO136: 4039092.374 | DP136: 43740.70158 | DQ136: 92.34173729
DG137: 125 | DH137: 39.06752182 | DI137: 149308.8824 | DJ137: 0.0002616557112 | DN137: 125 | DO137: 4241046.993 | DP137: 47677.36472 | DQ137: 88.95304968
DG138: 126 | DH138: 40.23954748 | DI138: 164239.7707 | DJ138: 0.0002450048933 | DN138: 126 | DO138: 4453099.342 | DP138: 51968.32755 | DQ138: 85.68871758
DG139: 127 | DH139: 41.4467339 | DI139: 180663.7477 | DJ139: 0.0002294136728 | DN139: 127 | DO139: 4675754.31 | DP139: 56645.47703 | DQ139: 82.54417749
DG140: 128 | DH140: 42.69013592 | DI140: 198730.1225 | DJ140: 0.0002148146209 | DN140: 128 | DO140: 4909542.025 | DP140: 61743.56996 | DQ140: 79.51503336
DG141: 129 | DH141: 43.97084 | DI141: =(1+$DI$6)^DG141 -> 218603.1348 | DJ141: =DH141/DI141 -> 0.0002011445995 | DN141: 129 | DO141: 5155019.126 | DP141: =(1+$DQ$9)^DN141 -> 67300.49126 | DQ141: =DO141/DP141 -> 76.59705048
DG142: 130 | DH142: =DH141*(1+$DI$7) -> 45.2899652 | DI142: 240463.4482 | DJ142: 0.0001883444887 | DN142: 130 | DO142: =DO141*(1+$DO$5) -> 5412770.083 | DP142: 73357.53547 | DQ142: 73.78614955
DG143: 131 | DH143: 46.64866415 | DI143: 264509.7931 | DJ143: 0.0001763589303 | DN143: 131 | DO143: 5683408.587 | DP143: 79959.71366 | DQ143: 71.07840094
DG144: 132 | DH144: 48.04812408 | DI144: 290960.7724 | DJ144: 0.0001651360893 | DN144: 132 | DO144: 5967579.016 | DP144: 87156.08789 | DQ144: 68.47001926
DG145: 133 | DH145: 49.4895678 | DI145: 320056.8496 | DJ145: 0.000154627429 | DN145: 133 | DO145: 6265957.967 | DP145: 95000.1358 | DQ145: 65.957358
DG146: 134 | DH146: 50.97425484 | DI146: 352062.5346 | DJ146: 0.0001447875017 | DN146: 134 | DO146: 6579255.865 | DP146: 103550.148 | DQ146: 63.53690449
DG147: 135 | DH147: 52.50348248 | DI147: 387268.788 | DJ147: 0.0001355737516 | DN147: 135 | DO147: 6908218.658 | DP147: 112869.6613 | DQ147: 61.20527497
DG148: 136 | DH148: 54.07858696 | DI148: 425995.6668 | DJ148: 0.0001269463311 | DN148: 136 | DO148: 7253629.591 | DP148: 123027.9309 | DQ148: 58.95920983
DG149: 137 | DH149: 55.70094456 | DI149: 468595.2335 | DJ149: 0.0001188679282 | DN149: 137 | DO149: 7616311.071 | DP149: 134100.4446 | DQ149: 56.79556911
DG150: 138 | DH150: 57.3719729 | DI150: 515454.7568 | DJ150: 0.0001113036055 | DN150: 138 | DO150: 7997126.624 | DP150: 146169.4847 | DQ150: 54.71132804
DG151: 139 | DH151: 59.09313209 | DI151: 567000.2325 | DJ151: 0.0001042206488 | DN151: 139 | DO151: 8396982.956 | DP151: 159324.7383 | DQ151: 52.70357288
DG152: 140 | DH152: 60.86592605 | DI152: 623700.2558 | DJ152: 9.758842567e-05 | DN152: 140 | DO152: 8816832.104 | DP152: 173663.9647 | DQ152: 50.76949681
DG153: 141 | DH153: 62.69190383 | DI153: 686070.2814 | DJ153: 9.137825313e-05 | DN153: 141 | DO153: 9257673.709 | DP153: 189293.7216 | DQ153: 48.90639601
DG154: 142 | DH154: 64.57266095 | DI154: 754677.3095 | DJ154: 8.556327338e-05 | DN154: 142 | DO154: 9720557.394 | DP154: 206330.1565 | DQ154: 47.11166588
DG155: 143 | DH155: 66.50984078 | DI155: 830145.0404 | DJ155: 8.01183378e-05 | DN155: 143 | DO155: 10206585.26 | DP155: 224899.8706 | DQ155: 45.38279741
DG156: 144 | DH156: 68.505136 | DI156: 913159.5445 | DJ156: 7.501989813e-05 | DN156: 144 | DO156: 10716914.53 | DP156: 245140.8589 | DQ156: 43.71737365
DG157: 145 | DH157: 70.56029008 | DI157: 1004475.499 | DJ157: 7.024590461e-05 | DN157: 145 | DO157: 11252760.25 | DP157: 267203.5362 | DQ157: 42.11306636
DG158: 146 | DH158: 72.67709878 | DI158: 1104923.049 | DJ158: 6.577571068e-05 | DN158: 146 | DO158: 11815398.27 | DP158: 291251.8545 | DQ158: 40.56763273
DG159: 147 | DH159: 74.85741174 | DI159: 1215415.354 | DJ159: 6.158998364e-05 | DN159: 147 | DO159: 12406168.18 | DP159: 317464.5214 | DQ159: 39.07891227
DG160: 148 | DH160: 77.1031341 | DI160: 1336956.889 | DJ160: 5.767062104e-05 | DN160: 148 | DO160: 13026476.59 | DP160: 346036.3283 | DQ160: 37.64482374
DG161: 149 | DH161: 79.41622812 | DI161: 1470652.578 | DJ161: 5.400067243e-05 | DN161: 149 | DO161: 13677800.42 | DP161: 377179.5979 | DQ161: 36.26336232
DG162: 150 | DH162: 81.79871496 | DI162: 1617717.836 | DJ162: 5.0564266e-05 | DN162: 150 | DO162: 14361690.44 | DP162: 411125.7617 | DQ162: 34.93259673
DG163: 151 | DH163: 84.25267641 | DI163: 1779489.619 | DJ163: 4.734653998e-05 | DN163: 151 | DO163: 15079774.96 | DP163: 448127.0802 | DQ163: 33.65066658
DG164: 152 | DH164: 86.7802567 | DI164: 1957438.581 | DJ164: 4.433357835e-05 | DN164: 152 | DO164: 15833763.71 | DP164: 488458.5174 | DQ164: 32.41577973
DG165: 153 | DH165: 89.38366441 | DI165: 2153182.439 | DJ165: 4.151235063e-05 | DN165: 153 | DO165: 16625451.89 | DP165: 532419.784 | DQ165: 31.22620983
DG166: 154 | DH166: 92.06517434 | DI166: 2368500.683 | DJ166: 3.887065559e-05 | DN166: 154 | DO166: 17456724.49 | DP166: 580337.5646 | DQ166: 30.08029387
DG167: 155 | DH167: 94.82712957 | DI167: 2605350.752 | DJ167: 3.639706842e-05 | DN167: 155 | DO167: 18329560.71 | DP167: 632567.9454 | DQ167: 28.97642988
DG168: 156 | DH168: 97.67194346 | DI168: 2865885.827 | DJ168: 3.408089134e-05 | DN168: 156 | DO168: 19246038.75 | DP168: 689499.0605 | DQ168: 27.91307465
DG169: 157 | DH169: 100.6021018 | DI169: 3152474.41 | DJ169: 3.191210734e-05 | DN169: 157 | DO169: 20208340.69 | DP169: 751553.9759 | DQ169: 26.88874164
DG170: 158 | DH170: 103.6201648 | DI170: 3467721.851 | DJ170: 2.988133688e-05 | DN170: 158 | DO170: 21218757.72 | DP170: 819193.8338 | DQ170: 25.90199883
DG171: 159 | DH171: 106.7287698 | DI171: 3814494.036 | DJ171: 2.797979726e-05 | DN171: 159 | DO171: 22279695.61 | DP171: 892921.2788 | DQ171: 24.95146676
DG172: 160 | DH172: 109.9306328 | DI172: 4195943.439 | DJ172: 2.61992647e-05 | DN172: 160 | DO172: 23393680.39 | DP172: 973284.1939 | DQ172: 24.0358166
DG173: 161 | DH173: 113.2285518 | DI173: 4615537.783 | DJ173: 2.453203877e-05 | DN173: 161 | DO173: 24563364.41 | DP173: 1060879.771 | DQ173: 23.15376829
DG174: 162 | DH174: 116.6254084 | DI174: 5077091.561 | DJ174: 2.297090903e-05 | DN174: 162 | DO174: 25791532.63 | DP174: 1156358.951 | DQ174: 22.30408872
DG175: 163 | DH175: 120.1241706 | DI175: 5584800.717 | DJ175: 2.150912391e-05 | DN175: 163 | DO175: 27081109.26 | DP175: 1260431.256 | DQ175: 21.48559005
DG176: 164 | DH176: 123.7278958 | DI176: 6143280.789 | DJ176: 2.014036148e-05 | DN176: 164 | DO176: 28435164.72 | DP176: 1373870.069 | DQ176: 20.69712803
DG177: 165 | DH177: 127.4397326 | DI177: 6757608.868 | DJ177: 1.885870211e-05 | DN177: 165 | DO177: 29856922.96 | DP177: 1497518.376 | DQ177: 19.93760039
DG178: 166 | DH178: 131.2629246 | DI178: 7433369.755 | DJ178: 1.765860289e-05 | DN178: 166 | DO178: 31349769.1 | DP178: 1632295.029 | DQ178: 19.20594533
DG179: 167 | DH179: 135.2008123 | DI179: 8176706.73 | DJ179: 1.653487361e-05 | DN179: 167 | DO179: 32917257.56 | DP179: 1779201.582 | DQ179: 18.50114
DG180: 168 | DH180: 139.2568367 | DI180: 8994377.403 | DJ180: 1.548265438e-05 | DN180: 168 | DO180: 34563120.44 | DP180: 1939329.724 | DQ180: 17.82219908
DG181: 169 | DH181: 143.4345418 | DI181: 9893815.144 | DJ181: 1.449739456e-05 | DN181: 169 | DO181: 36291276.46 | DP181: 2113869.4 | DQ181: 17.16817343
DG182: 170 | DH182: 147.7375781 | DI182: 10883196.66 | DJ182: 1.357483309e-05 | DN182: 170 | DO182: 38105840.28 | DP182: 2304117.646 | DQ182: 16.53814872
DG183: 171 | DH183: 152.1697054 | DI183: 11971516.32 | DJ183: 1.271098007e-05 | DN183: 171 | DO183: 40011132.3 | DP183: 2511488.234 | DQ183: 15.93124418
DG184: 172 | DH184: 156.7347966 | DI184: 13168667.96 | DJ184: 1.190209952e-05 | DN184: 172 | DO184: 42011688.91 | DP184: 2737522.175 | DQ184: 15.34661136
DG185: 173 | DH185: 161.4368405 | DI185: 14485534.75 | DJ185: 1.114469319e-05 | DN185: 173 | DO185: 44112273.36 | DP185: 2983899.171 | DQ185: 14.78343296
DG186: 174 | DH186: 166.2799457 | DI186: 15934088.23 | DJ186: 1.043548544e-05 | DN186: 174 | DO186: 46317887.03 | DP186: 3252450.096 | DQ186: 14.24092166
DG187: 175 | DH187: 171.2683441 | DI187: 17527497.05 | DJ187: 9.771409094e-06 | DN187: 175 | DO187: 48633781.38 | DP187: 3545170.605 | DQ187: 13.71831903
DG188: 176 | DH188: 176.4063944 | DI188: 19280246.76 | DJ188: 9.149592151e-06 | DN188: 176 | DO188: 51065470.45 | DP188: 3864235.959 | DQ188: 13.21489448
DG189: 177 | DH189: 181.6985862 | DI189: 21208271.43 | DJ189: 8.567345378e-06 | DN189: 177 | DO189: 53618743.97 | DP189: 4212017.195 | DQ189: 12.72994422
DG190: 178 | DH190: 187.1495438 | DI190: 23329098.57 | DJ190: 8.022150672e-06 | DN190: 178 | DO190: 56299681.17 | DP190: 4591098.743 | DQ190: 12.26279031
DG191: 179 | DH191: 192.7640301 | DI191: 25662008.43 | DJ191: 7.511650175e-06 | DN191: 179 | DO191: 59114665.22 | DP191: 5004297.63 | DQ191: 11.81277965
DG192: 180 | DH192: 198.546951 | DI192: 28228209.27 | DJ192: 7.033636073e-06 | DN192: 180 | DO192: 62070398.49 | DP192: 5454684.416 | DQ192: 11.37928315
DG193: 181 | DH193: 204.5033596 | DI193: 31051030.2 | DJ193: 6.58604105e-06 | DN193: 181 | DO193: 65173918.41 | DP193: 5945606.014 | DQ193: 10.96169478
DG194: 182 | DH194: 210.6384603 | DI194: 34156133.22 | DJ194: 6.166929347e-06 | DN194: 182 | DO194: 68432614.33 | DP194: 6480710.555 | DQ194: 10.55943075
DG195: 183 | DH195: 216.9576141 | DI195: 37571746.54 | DJ195: 5.774488388e-06 | DN195: 183 | DO195: 71854245.05 | DP195: 7063974.505 | DQ195: 10.17192871
DG196: 184 | DH196: 223.4663426 | DI196: 41328921.2 | DJ196: 5.407020946e-06 | DN196: 184 | DO196: 75446957.3 | DP196: 7699732.21 | DQ196: 9.798646919
DG197: 185 | DH197: 230.1703329 | DI197: 45461813.32 | DJ197: 5.062937794e-06 | DN197: 185 | DO197: 79219305.16 | DP197: 8392708.109 | DQ197: 9.439063546
DG198: 186 | DH198: 237.0754428 | DI198: 50007994.65 | DJ198: 4.740750844e-06 | DN198: 186 | DO198: 83180270.42 | DP198: 9148051.839 | DQ198: 9.092675893
DG199: 187 | DH199: 244.1877061 | DI199: 55008794.11 | DJ199: 4.439066699e-06 | DN199: 187 | DO199: 87339283.94 | DP199: 9971376.505 | DQ199: 8.758999713
DG200: 188 | DH200: 251.5133373 | DI200: 60509673.53 | DJ200: 4.156580637e-06 | DN200: 188 | DO200: 91706248.14 | DP200: 10868800.39 | DQ200: 8.437568531
DG201: 189 | DH201: 259.0587374 | DI201: 66560640.88 | DJ201: 3.89207096e-06 | DN201: 189 | DO201: 96291560.55 | DP201: 11846992.43 | DQ201: 8.127932988
... 361 more rows

Sheet Perpetuity
A1: Number of Cash Flows and use of the Perpetuity | I1: NOT TO BE PRINTED IN THE BOOK.
A3: Present Value PV of 100€ received at year "n" | G3: PV of 100€ received each year, during n years
C5: Discount rate (K-g) | I5: Discount rate (K-g)
A6: Year | B6: 0.1 | C6: 0.15 | D6: 0.2 | E6: 0.25 | G6: Year | H6: 0.1 | I6: 0.15 | J6: 0.2 | K6: 0.25
A7: 0 | B7: =100/(1+B$6)^$A7 -> 100 | C7: =100/(1+C$6)^$A7 -> 100 | D7: 100 | E7: 100 | G7: 0 | H7: =B7 -> 100 | I7: 100 | J7: 100 | K7: 100
A8: 1 | B8: =100/(1+B$6)^$A8 -> 90.90909091 | C8: 86.95652174 | D8: 83.33333333 | E8: 80 | G8: 1 | H8: 90.90909091 | I8: 86.95652174 | J8: 83.33333333 | K8: 80
A9: 2 | B9: 82.6446281 | C9: 75.61436673 | D9: 69.44444444 | E9: 64 | G9: 2 | H9: =H8+B9 -> 173.553719 | I9: 162.5708885 | J9: 152.7777778 | K9: 144
A10: 3 | B10: 75.13148009 | C10: 65.75162324 | D10: 57.87037037 | E10: 51.2 | G10: 3 | H10: 248.6851991 | I10: 228.3225117 | J10: 210.6481481 | K10: 195.2
A11: 4 | B11: 68.30134554 | C11: 57.17532456 | D11: 48.22530864 | E11: 40.96 | G11: 4 | H11: =H10+B11 -> 316.9865446 | I11: 285.4978363 | J11: 258.8734568 | K11: 236.16
A12: 5 | B12: 62.09213231 | C12: 49.71767353 | D12: 40.1877572 | E12: 32.768 | G12: 5 | H12: 379.0786769 | I12: 335.2155098 | J12: 299.061214 | K12: 268.928
A13: 6 | B13: 56.44739301 | C13: 43.23275959 | D13: 33.48979767 | E13: 26.2144 | G13: 6 | H13: 435.5260699 | I13: 378.4482694 | J13: 332.5510117 | K13: 295.1424
A14: 7 | B14: 51.31581182 | C14: 37.59370399 | D14: 27.90816472 | E14: 20.97152 | G14: 7 | H14: 486.8418818 | I14: 416.0419734 | J14: 360.4591764 | K14: 316.11392
A15: 8 | B15: 46.65073802 | C15: 32.69017738 | D15: 23.25680394 | E15: 16.777216 | G15: 8 | H15: 533.4926198 | I15: 448.7321508 | J15: 383.7159803 | K15: 332.891136
A16: 9 | B16: 42.40976184 | C16: 28.4262412 | D16: 19.38066995 | E16: 13.4217728 | G16: 9 | H16: 575.9023816 | I16: 477.158392 | J16: 403.0966503 | K16: 346.3129088
A17: 10 | B17: 38.55432894 | C17: 24.71847061 | D17: 16.15055829 | E17: 10.73741824 | G17: 10 | H17: 614.4567106 | I17: 501.8768626 | J17: 419.2472086 | K17: 357.050327
A18: 11 | B18: 35.04938995 | C18: 21.49432227 | D18: 13.45879857 | E18: 8.589934592 | G18: 11 | H18: 649.5061005 | I18: 523.3711849 | J18: 432.7060071 | K18: 365.6402616
A19: 12 | B19: 31.86308177 | C19: 18.69071502 | D19: 11.21566548 | E19: 6.871947674 | G19: 12 | H19: 681.3691823 | I19: 542.0618999 | J19: 443.9216726 | K19: 372.5122093
A20: 13 | B20: 28.96643797 | C20: 16.25279567 | D20: 9.346387899 | E20: 5.497558139 | G20: 13 | H20: 710.3356203 | I20: 558.3146955 | J20: 453.2680605 | K20: 378.0097674
A21: 14 | B21: 26.33312543 | C21: 14.1328658 | D21: 7.788656582 | E21: 4.398046511 | G21: 14 | H21: 736.6687457 | I21: 572.4475613 | J21: 461.0567171 | K21: 382.407814
A22: 15 | B22: 23.93920494 | C22: 12.28944852 | D22: 6.490547152 | E22: 3.518437209 | G22: 15 | H22: 760.6079506 | I22: 584.7370099 | J22: 467.5472642 | K22: 385.9262512
A23: 16 | B23: 21.76291358 | C23: 10.68647697 | D23: 5.408789293 | E23: 2.814749767 | G23: 16 | H23: 782.3708642 | I23: 595.4234868 | J23: 472.9560535 | K23: 388.7410009
A24: 17 | B24: 19.78446689 | C24: 9.292588673 | D24: 4.507324411 | E24: 2.251799814 | G24: 17 | H24: 802.1553311 | I24: 604.7160755 | J24: 477.4633779 | K24: 390.9928007
A25: 18 | B25: 17.98587899 | C25: 8.08051189 | D25: 3.756103676 | E25: 1.801439851 | G25: 18 | H25: =H24+B25 -> 820.1412101 | I25: 612.7965874 | J25: 481.2194816 | K25: 392.7942406
A26: 19 | B26: 16.35079908 | C26: 7.026532078 | D26: 3.130086397 | E26: 1.441151881 | G26: 19 | H26: 836.4920092 | I26: 619.8231195 | J26: 484.349568 | K26: 394.2353925
A27: 20 | B27: 14.8643628 | C27: 6.110027894 | D27: 2.60840533 | E27: 1.152921505 | G27: 20 | H27: 851.356372 | I27: 625.9331474 | J27: 486.9579733 | K27: 395.388314
A28: 21 | B28: 13.51305709 | C28: 5.313067734 | D28: 2.173671109 | E28: 0.9223372037 | G28: 21 | H28: 864.8694291 | I28: 631.2462151 | J28: 489.1316445 | K28: 396.3106512
A29: 22 | B29: 12.28459736 | C29: 4.620058899 | D29: 1.811392591 | E29: 0.7378697629 | G29: 22 | H29: 877.1540264 | I29: 635.866274 | J29: 490.943037 | K29: 397.0485209
A30: 23 | B30: 11.16781578 | C30: 4.017442521 | D30: 1.509493825 | E30: 0.5902958104 | G30: 23 | H30: 888.3218422 | I30: 639.8837165 | J30: 492.4525309 | K30: 397.6388168
A31: 24 | B31: 10.1525598 | C31: 3.493428279 | D31: 1.257911521 | E31: 0.4722366483 | G31: 24 | H31: 898.474402 | I31: 643.3771448 | J31: 493.7104424 | K31: 398.1110534
A32: 25 | B32: =100/(1+B$6)^$A32 -> 9.229599818 | C32: 3.037763721 | D32: 1.048259601 | E32: 0.3777893186 | G32: 25 | H32: =H31+B32 -> 907.7040018 | I32: 646.4149085 | J32: 494.758702 | K32: 398.4888427
A34: Present Value | B34: =SUM(B8:B32) -> 907.7040018 | C34: =SUM(C8:C32) -> 646.4149085 | D34: =SUM(D8:D32) -> 494.758702 | E34: =SUM(E8:E32) -> 398.4888427
A35: Perpetuity | B35: =100/B6 -> 1000 | C35: =100/C6 -> 666.6666667 | D35: =100/D6 -> 500 | E35: =100/E6 -> 400
A36: Perpetuity / PV | B36: =B35/B34 -> 1.101680722 | C36: =C35/C34 -> 1.031329349 | D36: =D35/D34 -> 1.010593645 | E36: =E35/E34 -> 1.00379222
H37: Overvaluation using perpetuity
G38: For a (K-g) = | H38: =H6 -> 0.1 | I38: =I6 -> 0.15 | J38: =J6 -> 0.2 | K38: =K6 -> 0.25
G39: Value using Perpetuity | H39: =B35 -> 1000 | I39: =C35 -> 666.6666667 | J39: =D35 -> 500 | K39: =E35 -> 400
G40: "Real" PV for 10 year project | H40: =H17 -> 614.4567106 | I40: =I17 -> 501.8768626 | J40: =J17 -> 419.2472086 | K40: =K17 -> 357.050327
G41: Overvaluation of perpetuity vs real PV for 10 year project | H41: =H$39/H40-1 -> 0.6274539488 | I41: =I$39/I40-1 -> 0.3283470835 | J41: =J$39/J40-1 -> 0.1926137844 | K41: =K$39/K40-1 -> 0.1202902496
G42: "Real" PV for 20 year project | H42: =H27 -> 851.356372 | I42: =I27 -> 625.9331474 | J42: =J27 -> 486.9579733 | K42: =K27 -> 395.388314
G43: Overvaluation for 20 year project | H43: =H$39/H42-1 -> 0.1745962477 | I43: =I$39/I42-1 -> 0.06507646937 | J43: =J$39/J42-1 -> 0.02678265347 | K43: =K$39/K42-1 -> 0.01166368822
G45: N of years, so that the perpetuity exceeds no more than 10% the PV | H45: 25 | I45: 17 | J45: 13 | K45: 11
G46: PV that is 10% lower than the perpetuity | H46: =H39/1.1 -> 909.0909091 | I46: =I39/1.1 -> 606.0606061 | J46: =J39/1.1 -> 454.5454545 | K46: =K39/1.1 -> 363.6363636
